Workbook

Sheet Index
A1: Number | B1: Essay's Title | C1: Magazine Reference | D1: Folder | E1: File Name | F1: Essay [Adobe Acrobat]
A2: 1 | B2: Osmium Isotopes | C2: Chemical Geology, Volume 130, 1996, Pages 55-64 | D2: C:\Essays\Geo_Dating\Dating\Impossible\ | E2: Greater_Than_Earth_01 | F2: =(D2 & E2 & ".pdf") -> C:\Essays\Geo_Dating\Dating\Impossible\Greater_Than_Earth_01.pdf
A3: 2 | B3: Evolution Beneath the Kaapvaal Craton | C3: Chemical Geology, Volume 208, 2004, Pages 89-118 | D3: C:\Essays\Geo_Dating\Dating\Impossible\ | E3: Greater_Than_Earth_02 | F3: =(D3 & E3 & ".pdf") -> C:\Essays\Geo_Dating\Dating\Impossible\Greater_Than_Earth_02.pdf
A4: 3 | B4: Central Asian Orogenic Belt | C4: Lithos, Volume 126, 2011, Pages 233-247 | D4: C:\Essays\Geo_Dating\Dating\Impossible\ | E4: Greater_Than_Earth_03 | F4: =(D4 & E4 & ".pdf") -> C:\Essays\Geo_Dating\Dating\Impossible\Greater_Than_Earth_03.pdf
A5: 5 | B5: The Age of Continental Roots | C5: Lithos, Volume 48, 1999, Pages 171-194 | D5: C:\Essays\Geo_Dating\Dating\Impossible\ | E5: Greater_Than_Earth_05 | F5: =(D5 & E5 & ".pdf") -> C:\Essays\Geo_Dating\Dating\Impossible\Greater_Than_Earth_05.pdf
A6: 7 | B6: Norwegian Caledonides: An isotopic investigation | C6: Lithos, Volume 117, 2010, Pages 1-19 | D6: C:\Essays\Geo_Dating\Dating\Impossible\ | E6: Older_Than_Earth_01 | F6: =(D6 & E6 & ".pdf") -> C:\Essays\Geo_Dating\Dating\Impossible\Older_Than_Earth_01.pdf
A7: 8 | B7: Mount Isa Inliner | C7: Geochimica et Cosmochimica Acta, 2006, Volume 70, Pages 2562-2576 | D7: C:\Essays\Geo_Dating\Dating\Impossible\ | E7: Older_Than_Earth_02 | F7: C:\Essays\Geo_Dating\Dating\Impossible\Older_Than_Earth_02.pdf
A8: 9 | B8: Diamond Formation Episodes | C8: Contributions Mineral Petrology, 2009, Volume 157, Pages 525–540 | D8: C:\Essays\Geo_Dating\Dating\Impossible\ | E8: Older_Than_Earth_03 | F8: C:\Essays\Geo_Dating\Dating\Impossible\Older_Than_Earth_03.pdf
A9: 10 | B9: Re/Os Isotopes of Sulfides | C9: Lithos, Volume 102, 2008, Pages 43-64 | D9: C:\Essays\Geo_Dating\Dating\Impossible\ | E9: Older_Than_Earth_04 | F9: C:\Essays\Geo_Dating\Dating\Impossible\Older_Than_Earth_04.pdf
A10: 11 | B10: Archean Man Shield, West Africa | C10: Precambrian Research, Volume 118, 2002, Pages 267-283 | D10: C:\Essays\Geo_Dating\Dating\Impossible\ | E10: Older_Than_Earth_05 | F10: C:\Essays\Geo_Dating\Dating\Impossible\Older_Than_Earth_05.pdf
A11: 12 | B11: Re-Os, Sm-Nd, and Rb-Sr Isotope Evidence | C11: Geochemica et Cosmochimica Acta, 1995, Volume 59, Number 5, Pages 959-977 | D11: C:\Essays\Geo_Dating\Dating\Impossible\ | E11: Older_Than_Earth_06 | F11: C:\Essays\Geo_Dating\Dating\Impossible\Older_Than_Earth_06.pdf
A12: 13 | B12: Lithospheric Mantle Evolution | C12: Lithos, Volume 125, 2011, Pages 405-422 | D12: C:\Essays\Geo_Dating\Dating\Impossible\ | E12: Older_Than_Earth_07 | F12: C:\Essays\Geo_Dating\Dating\Impossible\Older_Than_Earth_07.pdf
A13: 14 | B13: Northern Canadian Cordillera Xenoliths | C13: Geochimica et Cosmochimica Acta, 2000, Volume 64, Number 17, Pages 3061-3071 | D13: C:\Essays\Geo_Dating\Dating\Impossible\ | E13: Older_Than_Earth_08 | F13: C:\Essays\Geo_Dating\Dating\Impossible\Older_Than_Earth_08.pdf
A14: 15 | B14: Canadian Cordillera lithosphere | C14: Chemical Geology, Volume 166, 2000, Pages 85-101 | D14: C:\Essays\Geo_Dating\Dating\Impossible\ | E14: Older_Than_Earth_09 | F14: C:\Essays\Geo_Dating\Dating\Impossible\Older_Than_Earth_09.pdf
A15: 17 | B15: Upper Crust in North-East Australia | C15: International Journal Earth Science, 2012, Volume 101, Pages 1091-1109 | D15: C:\Essays\Geo_Dating\Dating\Impossible\ | E15: Older_Than_Earth_11 | F15: =(D15 & E15 & ".pdf") -> C:\Essays\Geo_Dating\Dating\Impossible\Older_Than_Earth_11.pdf
A16: 18 | B16: Lithospheric Mantle and Diamonds | C16: Lithos, Volume 112-S, 2009, Pages 1120-1132 | D16: C:\Essays\Geo_Dating\Dating\Impossible\ | E16: Older_Than_Earth_12 | F16: C:\Essays\Geo_Dating\Dating\Impossible\Older_Than_Earth_12.pdf
A17: 19 | B17: The Kaapvaal Cratonic Lithospheric Mantle | C17: Journal Of Petrology, 2007, Volume 48, Number 3, Pages 589-625 | D17: C:\Essays\Geo_Dating\Dating\Impossible\ | E17: To_Old_01 | F17: C:\Essays\Geo_Dating\Dating\Impossible\To_Old_01.pdf
A18: 20 | B18: Xenoliths from the Kaapvaal Craton | C18: Earth and Planetary Science Letters, 1995, Volume 134, Pages 341-357 | D18: C:\Essays\Geo_Dating\Dating\Impossible\ | E18: To_Old_02 | F18: C:\Essays\Geo_Dating\Dating\Impossible\To_Old_02.pdf
A19: 21 | B19: In Situ Analysis of Sulphides | C19: Earth and Planetary Science Letters, 2002, Volume 203, Pages 651-663 | D19: C:\Essays\Geo_Dating\Dating\Impossible\ | E19: To_Old_03 | F19: C:\Essays\Geo_Dating\Dating\Impossible\To_Old_03.pdf
A20: 22 | B20: Southern African Peridotite Xenoliths | C20: Geochimica et Cosmochimica Acta, 1989, Volume 53, Pages 1583-1595 | D20: C:\Essays\Geo_Dating\Dating\Impossible\ | E20: To_Old_04 | F20: C:\Essays\Geo_Dating\Dating\Impossible\To_Old_04.pdf
A21: 23 | B21: Xenoliths from Kimberley, South Africa | C21: Geochimica et Cosmochimica Acta, 2008, Volume 72, Pages 5722-5756 | D21: C:\Essays\Geo_Dating\Dating\Impossible\ | E21: To_Old_05 | F21: C:\Essays\Geo_Dating\Dating\Impossible\To_Old_05.pdf
A22: 24 | B22: Rb-Sr And Sm-Nd Studies | C22: Chemical Geology, 1985, Volume 52, Pages 249-271 | D22: C:\Essays\Geo_Dating\Dating\Impossible\ | E22: To_Old_06 | F22: C:\Essays\Geo_Dating\Dating\Impossible\To_Old_06.pdf
A23: 25 | B23: Dating the Oldest Rocks in the Solar System | C23: Elements, 2013, Volume 9, Pages 39-44 | D23: C:\Essays\Geo_Dating\Dating\Th-232_Pb-208\ | E23: Age_Earth | F23: C:\Essays\Geo_Dating\Dating\Th-232_Pb-208\Age_Earth.pdf
B27: Color Red, Essay = Impossible Dates

Sheet Greater_02
A1: Sample | B1: Age | C1: Age | E1: -279 | F1: 5
A2: Number | B2: Billion Years | C2: Billion Years | E2: -124 | F2: 5.11
A3: LT-98/3-1 | B3: 3.02 | C3: 3.04 | E3: -71.5 | F3: 5.3
A4: LT-98/3-3 | B4: 2.13 | C4: 2.84 | E4: -62.8 | F4: 5.4
A5: LT98-3-6 | B5: -3.03 | E5: -61.4 | F5: 5.65
A6: LT98-3-5C | B6: 2.93 | C6: 3.51 | E6: -50.2 | F6: 5.8
A7: LT98-3-5R | B7: 1.17 | C7: 6.41 | E7: -48.7 | F7: 5.9
A8: LT98-3-3 | B8: -2.48 | C8: 2.31 | E8: -48 | F8: 6 | H8: Age Type | I8: Amount | J8: Percent
A9: LT98/3-7 | B9: -21.7 | C9: 11.4 | E9: -42.7 | F9: 6.37 | H9: Negative Ages | I9: 92 | J9: =(I9/374)*100 -> 24.59893048
A10: LT98/3-8 | B10: -8.6 | C10: -14.5 | E10: -40 | F10: 6.41 | H10: Older Than The Earth | I10: 35 | J10: =(I10/374)*100 -> 9.35828877
A11: WR | B11: 2.48 | C11: 4.04 | E11: -38.7 | F11: 6.7 | H11: Older Than The Galaxy | I11: 11 | J11: =(I11/374)*100 -> 2.941176471
A12: WR-lachd | B12: 2.52 | C12: 3.06 | E12: -38.6 | F12: 6.8 | H12: Older Than The Universe | I12: 8 | J12: =(I12/374)*100 -> 2.139037433
A13: WR-lachd2 | B13: 2.56 | C13: 3.03 | E13: -36.8 | F13: 7.09 | H13: Count | I13: 374
A14: LT-98/5 | B14: 2.66 | C14: 2.69 | E14: -36.2 | F14: 7.1
A15: LT98/5-2 | B15: -22.6 | C15: 4.4 | E15: -30.4 | F15: 7.2
A16: LT98/5-3R | B16: 2.31 | C16: 2.59 | E16: -29.5 | F16: 7.7
A17: LT98/5-3C | B17: 2.7 | C17: 2.93 | E17: -25 | F17: 7.88
A18: LT-98/7 | B18: 3.23 | C18: 3.25 | E18: -23.9 | F18: 8.2
A19: WR | B19: 1.97 | C19: 2.99 | E19: -22.8 | F19: 8.4
A20: WR-lachd | B20: 2.23 | C20: 2.73 | E20: -22.6 | F20: 8.66
A21: LT-98/8-1 | B21: 2.87 | C21: 3.34 | E21: -21.7 | F21: 9.3
A22: LT-98/8-2 | B22: -0.86 | C22: -1.08 | E22: -20.8 | F22: 9.37
A23: LT-98/8-4 | B23: -17.1 | C23: 3.35 | E23: -20.6 | F23: 9.4
A24: LT98-8-2B | B24: 1.32 | C24: 1.34 | E24: -17.1 | F24: 11.4
A25: LT98-8-6 | B25: -12.1 | C25: 2.25 | E25: -16.8 | F25: 11.8
A26: LT98-8-11 | B26: -0.11 | C26: -0.11 | E26: -14.5 | F26: 13
A27: LT98-8-3R | B27: 2.41 | C27: 2.6 | E27: -13.6 | F27: 16.6
A28: LT98-8-3C | B28: 2.64 | C28: 3.18 | E28: -13.1 | F28: 18.1
A29: LT98-8-7 | B29: 0.83 | C29: 2.81 | E29: -12.9 | F29: 24.1
A30: LT98-8-6a | B30: -0.18 | C30: -0.2 | E30: -12.1 | F30: 31
A31: LT98-8-9 | B31: -3.3 | C31: 3.65 | E31: -11.8 | F31: 51
A32: LT98-8-2a | B32: 2.41 | C32: 2.5 | E32: -11.6 | F32: 51
A33: LT98/8-13 | B33: -11 | C33: 2.96 | E33: -11 | F33: 54.4
A34: LT98/8-14 | B34: 0.5 | C34: 0.73 | E34: -10.9 | F34: 78.96
A35: LT98/8-15 | B35: 1.12 | C35: 1.14 | E35: -10.7
A36: LT98/8-16 | B36: 2.19 | C36: 2.26 | E36: -9.39
A37: LT98/8-17 | B37: 2.21 | C37: 2.23 | E37: -8.6
A38: LT98/8-18 | B38: 1.69 | C38: 2.09 | E38: -8.44
A39: LT98/8-19 | B39: 2.07 | C39: 2.25 | E39: -8.25
A40: WR | B40: 1.18 | E40: -8.22
A41: WR-L | B41: 0.07 | E41: -7.96
A42: T-98/10-1 | B42: -1.85 | C42: -2.92 | E42: -7.65
A43: LT-98/10-2 | B43: 1.69 | C43: 1.73 | E43: -7.14
A44: LT98-10-2 | B44: 1.88 | C44: 1.9 | E44: -6.48
A45: LT98-10-1 | B45: 1.17 | C45: 1.19 | E45: -6.27
A46: LT98/10-5 | B46: 0.12 | C46: 0.45 | E46: -6.11
A47: LT98/10-6 | B47: 1.6 | C47: 1.65 | E47: -6.04
A48: WR | B48: 2.55 | C48: 3.82 | E48: -6.02
A49: WR-lachd | B49: 2.61 | C49: 3.53 | E49: -5.63
A50: LT-98/12 | B50: 3.42 | C50: 3.48 | E50: -5.31
A51: LT98/12-2 | B51: 3.21 | C51: 3.26 | E51: -5.28
A52: LT98/12-3 | B52: 2.98 | C52: 3.03 | E52: -5.2
A53: WR | B53: 1.39 | C53: 1.97 | E53: -4.99
A54: WR-lachd | B54: 1.46 | C54: 1.76 | E54: -4.95
A55: WR-lachd2 | B55: 1.4 | C55: 1.64 | E55: -4.61
A56: LT98-13-2 | B56: 0.74 | C56: 0.98 | E56: -4.33
A57: LT98-13-2 | B57: 0.76 | C57: 1.06 | E57: -4.25
A58: LT-98/13-1 | B58: 1.81 | C58: 2.01 | E58: -4.22
A59: WR | B59: 2.51 | C59: 5.65 | E59: -4
A60: WR-lachd | B60: 1.39 | C60: 1.75 | E60: -3.83
A61: LT-98/14 | B61: 2.64 | C61: 2.66 | E61: -3.76
A62: LT98-14-1 | B62: 3.45 | C62: 3.55 | E62: -3.56
A63: LT98-14-2 | B63: 3.42 | C63: 3.49 | E63: -3.41
A64: LT98/14-6 | B64: 2 | C64: 2.93 | E64: -3.3
A65: WR | B65: 2.48 | C65: 2.92 | E65: -3.29
A66: WR-lachd | B66: 2.77 | C66: 3.17 | E66: -3.21
A67: LT-98/15-1 | B67: 2.43 | C67: 2.7 | E67: -3.13
A68: LT-98/15-2 | B68: 3.04 | C68: 3.14 | E68: -3.03
A69: LT98-15-1 | B69: 2.79 | C69: 3.06 | E69: -2.92
A70: LT98-15-3 | B70: 0.17 | C70: 0.4 | E70: -2.63
A71: LT98-15-4 | B71: -3.76 | C71: -4.25 | E71: -2.5
A72: LT98-15-1 | B72: 2.42 | C72: 3.94 | E72: -2.48
A73: LT98-15-2 | B73: 2.65 | C73: 2.94 | E73: -1.96
A74: LT98/15-7 | B74: 3.02 | C74: 3.12 | E74: -1.92
A75: LBM12-1 | B75: -22.8 | C75: 8.4 | E75: -1.88
A76: LBM12-6 | B76: -50.2 | C76: 31 | E76: -1.85
A77: LBM12-4 | B77: -38.7 | C77: 3.86 | E77: -1.52
A78: LBM12-3 | B78: -42.7 | C78: 6.8 | E78: -1.24
A79: LBM12-2 | B79: -29.5 | C79: 5.3 | E79: -1.08
A80: LBM12-7 | B80: -279 | C80: 3.33 | E80: -0.86
A81: LBM12-8 | C81: 4.28 | E81: -0.57
A82: LBM12-9 | C82: 3.23 | E82: -0.44
A83: LBM12-11 | C83: 3.2 | E83: -0.42
A84: LBM12-12 | C84: 4.38 | E84: -0.33
A85: LBM12-13 | C85: 6.37 | E85: -0.31
A86: JGF-98/6-1 | B86: -11.6 | C86: 51 | E86: -0.2
A87: JGF-98/6-1b | B87: -10.9 | C87: -38.6 | E87: -0.2
A88: JGF-98/6-3 | B88: -8.44 | C88: -9.39 | E88: -0.18
A89: JGF98/6-4 | B89: -6.02 | C89: -124 | E89: -0.11
A90: JGF98/6-5 | B90: 1.66 | C90: 1.82 | E90: -0.11
A91: JGF98/6-6 | B91: -4.99 | C91: -6.11 | E91: -0.09
A92: JGF98/6-7a | B92: -13.1 | C92: 16.6 | E92: -0.07
A93: JGF98/6-7b | B93: -36.8 | C93: 9.4
A94: JGF98/6-7c | B94: -36.2 | C94: 13
A95: JGF98/6-7d | B95: -61.4 | C95: 5.9
A96: JGF98/6-9 | B96: -20.6 | C96: 51
A97: JGF98/6-10 | B97: -20.8 | C97: 9.37
A98: JGF98/6-11 | B98: -7.96 | C98: 78.96
A99: JGF98/6-12a | B99: 2.71 | C99: 2.78
A100: JGF98/6-12b | B100: 2.63 | C100: 2.66
A101: JGF98/6-14 | B101: -48 | C101: 7.88
A102: KDB/6-3 | B102: 0.58 | C102: 0.94
A103: KDB/6-2 | B103: -2.63 | C103: -13.6
A104: KDB/6-1 | B104: -1.92 | C104: -6.48
A105: KDB/6-5 | B105: 1.43 | C105: 1.99
A106: KDB/6-4 | B106: -1.88 | C106: 11.8
A107: KDB6-6 | B107: -1.96 | C107: 2.6
A108: KDB6-7 | B108: 0.54 | C108: 1.63
A109: KDB6-8 | B109: -0.07 | C109: -0.31
A110: WR | B110: 2.3 | C110: 2.7
A111: WR-lachd | B111: 2.29 | C111: 2.48
A112: FRB1500-1 | B112: -3.41 | C112: 1.8
A113: FRB1500-3 | B113: 0.77 | C113: 2.74
A114: FRB1500-5 | B114: 0.54 | C114: 1.66
A115: FRB1500-6 | B115: -3.83 | C115: -71.5
A116: FRB1500-7 | B116: -8.22 | C116: -25
A117: FRB1500-8 | B117: -7.65 | C117: -23.9
A118: FRB1500-10 | B118: -6.04 | C118: -10.7
A119: FRB1500-11 | B119: 3.02 | C119: 3.09
A120: FRB1500-12 | B120: 1.47 | C120: 1.85
A121: FRB1500-15 | B121: -4 | C121: 3.46
A122: FRB1500-16 | B122: -0.2 | C122: -0.44
A123: FRB1500-17 | B123: -4.95 | C123: 2.84
A124: FRB1500-18 | B124: 0.83 | C124: 0.95
A125: FRB1500-19 | B125: 0.94 | C125: 4.59
A126: WR | C126: 1.13
A127: WR-lachd | C127: 1.43
A128: FRB1506-3 | B128: -4.61 | C128: 7.2
A129: FRB1506-2 | B129: 1.36 | C129: 1.56
A130: FRB1506-1 | B130: -0.42 | C130: -1.52
A131: FRB1506-4 | B131: -2.5 | C131: 7.7
A132: WR | B132: 2.4 | C132: 2.83
A133: WR-lachd | B133: 2.48 | C133: 2.79
A134: FRB1508-1 | B134: 2.02 | C134: 2.49
A135: WR | B135: 1.11 | C135: 18.1
A136: WR-lachd | B136: 1.76 | C136: 2.67
A137: FRB1510-2 | C137: 6.7
A138: FRB1510-3 | C138: 5.8
A139: FRB1510-4 | B139: -62.8 | C139: 9.3
A140: FRB1510-6 | B140: 2.31 | C140: 2.45
A141: FRB1510-7 | C141: 4.7
A142: FRB1510-12 | B142: 2.55 | C142: 2.58
A143: FRB1510-13 | B143: -11.8 | C143: 8.66
A144: FRB1510-14 | B144: 1.1 | C144: 1.78
A145: FRB1510-15 | C145: 4.52
A146: FRB1510-16 | B146: -3.29
A147: FRB1510-17 | B147: 2.86 | C147: 2.97
A148: FRB1510-18 | B148: -5.31 | C148: -7.14
A149: WR | C149: 2.42
A150: WR-lachd | C150: 2.39
A151: FRB1512-1 | B151: -5.63 | C151: 2.78
A152: FRB1512-2 | B152: 2.63 | C152: 2.78
A153: FRB1512-3 | B153: -6.27 | C153: 3.38
A154: FRB1512-4 | B154: -12.9 | C154: 3.87
A155: FRB1512-5 | B155: -30.4 | C155: 2.45
A156: FRB1514 | B156: 1.39 | C156: 54.4
A157: WR-lachd | B157: 1.71 | C157: 2.07
A158: FRB1514B-1 | B158: -5.2 | C158: 6
A159: FRB1514B-2 | B159: 2.07 | C159: 2.34
A160: FRB1514B-4 | C160: 5
A161: FRB1514B-5 | B161: -16.8 | C161: 5.4
A162: FRB1514B-6 | B162: -8.25 | C162: 8.2
A163: FRB1514B-7 | B163: -40 | C163: 7.09
A164: FRB1514B-8 | B164: 2.28 | C164: 2.63
A165: FRB1514-2 | B165: -48.7 | C165: 7.1
A166: FRB1514-5 | B166: 0.87 | C166: 0.91
A167: FRB1514-3 | B167: -3.13 | C167: 24.1
A168: FRB1514-1 | B168: 1.84 | C168: 1.95
A169: FRB1514-4 | B169: -0.57 | C169: -1.24
A170: FRB1516-1 | B170: 2.95 | C170: 3.08
A171: FRB1518-2 | B171: 2.44 | C171: 2.53
A172: BD2332-1 | B172: 2.88 | C172: 2.98
A173: BD2332A-2 | B173: -4.22 | C173: -4.33
A174: BD2332A-4 | B174: -3.21 | C174: -3.56
A175: BD2329-3 | B175: 2.84 | C175: 2.87
A176: BD2329-4a | B176: 3.02 | C176: 3.06
A177: BD2329-4b | B177: 2.93 | C177: 2.96
A178: BD2329-5 | B178: 3.21 | C178: 3.24
A179: BD2329-1 | B179: 3.21 | C179: 3.25
A180: BD2329-6R | B180: 1.74 | C180: 1.82
A181: BD2329-6C | B181: 3.01 | C181: 3.14
A182: BD2329-7 | B182: 2.64 | C182: 2.84
A183: BD2329-9 | B183: 2.62 | C183: 2.66
A184: BD2329-10 | B184: 2.39 | C184: 2.42
A185: BD2329-10b | B185: 2.45 | C185: 2.5
A186: BD2329A-2 | B186: 2.14 | C186: 2.14
A187: BD2329A-3 | B187: 1.06 | C187: 1.09
A188: BD2329A-4 | B188: 2.59 | C188: 2.75
A189: BD2329A-5 | B189: 3.14 | C189: 3.38
A190: BD2329A-6 | B190: 2.69 | C190: 2.74
A191: BD2374-2 | B191: 1.51 | C191: 1.56
A192: BD2443-1 | B192: -0.09 | C192: -0.33
A193: BD2443-2 | B193: 1.85 | C193: 2.29
A194: BD2443-3 | B194: 1.71 | C194: 2.21
A195: BD2443-4 | B195: 2.61 | C195: 2.8
A196: BD2443-5 | B196: 2.8 | C196: 2.93
A197: BD2443-6 | B197: 2.71 | C197: 2.72
A198: BD2452-2 | B198: 5.11 | C198: -5.28
A199: Average | B199: =AVERAGE(B3:B198) -> -5.149175824 | C199: =AVERAGE(C3:C198) -> 2.554739583
A200: Maximim | B200: =MAX(B3:B199) -> 5.11 | C200: =MAX(C3:C199) -> 78.96
... 207 more rows

Sheet Greater_03
A1: Sample | B1: 147Sm/144Nd | C1: 176Lu/177Hf | D1: Table 2
A2: Number | B2: Billion Years | C2: Billion Years
A3: KL-3-24 | C3: 0.76
A4: KL-3-26 | B4: 2.31 | C4: -0.03
A5: KL3-27-1 | B5: 1.82 | C5: 0.69
A6: KL3-27-2 | C6: 0.7
A7: KL3-28 | B7: 1.43 | C7: 14.65
A8: KL3-30 | C8: 0.74
A9: KL3-38 | B9: 1.15 | C9: -0.03
A10: 08KL-01 | B10: 1.52 | C10: 0.47
A11: 08KL-03 | B11: 4.35 | C11: -0.52 | F11: Table 2
A12: 08KL-04 | B12: 3.47 | C12: 0.63 | F12: 147Sm/144Nd | G12: 176Lu/177Hf
A13: 08KL-05 | B13: 0.49 | C13: -9.27 | F13: Billion Years | G13: Billion Years
A14: 08KL-07 | B14: 0.57 | C14: 0.44 | E14: Average | F14: 2.058571429 | G14: 0.7329411765
A15: 08KL-09 | B15: 2.31 | C15: 0.39 | E15: Maximim | F15: 5.91 | G15: 14.65
A16: 08KL-10 | B16: 5.91 | C16: 0.43 | E16: Minimum | F16: 0.49 | G16: -9.27
A17: 08KL-11 | B17: 0.82 | C17: 0.54
A18: 08KL-12 | B18: 1.39 | C18: 0.59 | E18: Table 3 | F18: 187Re/188Os | G18: 187Re/188Os
A19: 08KL-13 | B19: 1.28 | C19: 1.28 | F19: Billion Years | G19: Billion Years
A20: Average | B20: =AVERAGE(B3:B19) -> 2.058571429 | C20: =AVERAGE(C3:C19) -> 0.7329411765 | E20: Average | F20: 0.9376190476 | G20: 0.8552380952
A21: Maximim | B21: =MAX(B3:B20) -> 5.91 | C21: =MAX(C3:C20) -> 14.65 | E21: Maximim | F21: 2.09 | G21: 10.62
A22: Minimum | B22: =MIN(B3:B21) -> 0.49 | C22: =MIN(C3:C21) -> -9.27 | E22: Minimum | F22: -0.33 | G22: -3.83
A25: Table 3 | B25: 187Re/188Os | C25: 187Os/188Os | D25: (187Os/188Os)i | E25: TRD (Billion Years) | F25: TMA (Billion Years)
A26: KL3-24 | B26: 0.36 | C26: 0.11807 | D26: 0.11807 | E26: 1.61 | F26: 10.62
A27: KL3-26 | B27: 0.55 | C27: 0.12434 | D27: 0.12434 | E27: 0.74 | F27: -2.49
A28: KL3-27-1 | B28: 3.51 | C28: 0.12848 | D28: 0.12848 | E28: 0.16 | F28: -0.02
A29: KL3-27-2 | B29: 0.1 | C29: 0.12981 | D29: 0.12981 | E29: -0.03 | F29: -0.04
A30: KL3-28 | B30: 0.13 | C30: 0.12457 | D30: 0.12457 | E30: 0.71 | F30: 1.01
A31: KL3-30 | B31: 0.52 | C31: 0.12333 | D31: 0.12333 | E31: 0.88 | F31: -3.83
A32: KL3-31 | B32: 0.68 | C32: 0.12209 | D32: 0.12209 | E32: 1.05 | F32: -1.78
A33: KL3-38 | B33: 0.35 | C33: 0.12162 | D33: 0.12162 | E33: 1.12 | F33: 6.52
A34: KL3-40 | B34: 0.02 | C34: 0.11458 | D34: 0.11458 | E34: 2.09 | F34: 2.17
A35: KL3-41 | B35: 12.16 | C35: 0.13194 | D35: 0.13191 | E35: -0.33 | F35: 0.01
A36: 08KL-01 | B36: 2.78 | C36: 0.12172 | D36: 0.12171 | E36: 1.11 | F36: -0.2
A37: 08KL-02 | B37: 0.11 | C37: 0.11602 | D37: 0.11602 | E37: 1.89 | F37: 2.54
A38: 08KL-03 | B38: 0.65 | C38: 0.12531 | D38: 0.12531 | E38: 0.6 | F38: -1.17
A39: 08KL-04 | B39: 0.2 | C39: 0.11949 | D39: 0.11949 | E39: 1.42 | F39: 2.64
A40: 08KL-05 | B40: 0.03 | C40: 0.12049 | D40: 0.12049 | E40: 1.28 | F40: 1.38
A41: 08KL-07 | B41: 1.71 | C41: 0.11593 | D41: 0.11593 | E41: 1.91 | F41: -0.64
A42: 08KL-09 | B42: 0.62 | C42: 0.12759 | D42: 0.12759 | E42: 0.28 | F42: -0.62
A43: 08KL-10 | B43: 1.53 | C43: 0.12682 | D43: 0.12682 | E43: 0.39 | F43: -0.15
A44: 08KL-11 | B44: 4.86 | C44: 0.12226 | D44: 0.12225 | E44: 1.03 | F44: -0.1
A45: 08KL-12 | B45: 0.08 | C45: 0.12563 | D45: 0.12563 | E45: 0.56 | F45: 0.69
A46: 08KL-13 | B46: 0.06 | C46: 0.12093 | D46: 0.12093 | E46: 1.22 | F46: 1.42
D47: Average | E47: =AVERAGE(E26:E46) -> 0.9376190476 | F47: =AVERAGE(F26:F46) -> 0.8552380952
D48: Maximim | E48: =MAX(E26:E47) -> 2.09 | F48: =MAX(F26:F47) -> 10.62
D49: Minimum | E49: =MIN(E26:E48) -> -0.33 | F49: =MIN(F26:F48) -> -3.83
A52: Table 4 | K52: Table 3
A53: Rhenium | B53: Initial | C53: Today | D53: Today | E53: The Ratio | F53: Half | G53: Decay | H53: 2.303/Delta | I53: Age | J53: Age | K53: Age
A54: Osmium | B54: 187Os/188Os | C54: 187Os/188Os | D54: 187Re/188Os | E54: Plus One | F54: Life | G54: Constant | H54: Constant | I54: Years | J54: Million Years | K54: Billion Years
A55: Dating | B55: 0.11807 | C55: 0.11807 | D55: 0.36 | E55: =1+((C55-B55)/D55) -> 1 | F55: 41600000000 | G55: =(0.693/F55) -> 1.665865385e-11 | H55: =(2.303/G55) -> 1.382464646e+11 | I55: =(LOG(E55))*(H55) -> 0 | J55: =(I55/1000000) -> 0 | K55: =(J55/1000) -> 0
B56: 0.12434 | C56: 0.12434 | D56: 0.55 | E56: =1+((C56-B56)/D56) -> 1 | F56: 41600000000 | G56: 1.665865385e-11 | H56: =(2.303/G56) -> 1.382464646e+11 | I56: =(LOG(E56))*(H56) -> 0 | J56: =(I56/1000000) -> 0 | K56: =(J56/1000) -> 0
B57: 0.12848 | C57: 0.12848 | D57: 3.51 | E57: 1 | F57: 41600000000 | G57: 1.665865385e-11 | H57: 1.382464646e+11 | I57: 0 | J57: 0 | K57: 0
B58: 0.12981 | C58: 0.12981 | D58: 0.1 | E58: =1+((C58-B58)/D58) -> 1 | F58: 41600000000 | G58: =(0.693/F58) -> 1.665865385e-11 | H58: =(2.303/G58) -> 1.382464646e+11 | I58: =(LOG(E58))*(H58) -> 0 | J58: =(I58/1000000) -> 0 | K58: =(J58/1000) -> 0
B59: 0.12457 | C59: 0.12457 | D59: 0.13 | E59: 1 | F59: 41600000000 | G59: 1.665865385e-11 | H59: 1.382464646e+11 | I59: 0 | J59: 0 | K59: 0
B60: 0.12333 | C60: 0.12333 | D60: 0.52 | E60: 1 | F60: 41600000000 | G60: 1.665865385e-11 | H60: 1.382464646e+11 | I60: 0 | J60: 0 | K60: 0
B61: 0.12209 | C61: 0.12209 | D61: 0.68 | E61: 1 | F61: 41600000000 | G61: 1.665865385e-11 | H61: 1.382464646e+11 | I61: 0 | J61: 0 | K61: 0
B62: 0.12162 | C62: 0.12162 | D62: 0.35 | E62: 1 | F62: 41600000000 | G62: 1.665865385e-11 | H62: 1.382464646e+11 | I62: 0 | J62: 0 | K62: 0
B63: 0.11458 | C63: 0.11458 | D63: 0.02 | E63: 1 | F63: 41600000000 | G63: 1.665865385e-11 | H63: 1.382464646e+11 | I63: 0 | J63: 0 | K63: 0
B64: 0.13191 | C64: 0.13194 | D64: 12.16 | E64: 1.000002467 | F64: 41600000000 | G64: 1.665865385e-11 | H64: 1.382464646e+11 | I64: 148124.0198 | J64: 0.1481240198 | K64: 0.0001481240198
B65: 0.12171 | C65: 0.12172 | D65: 2.78 | E65: 1.000003597 | F65: 41600000000 | G65: 1.665865385e-11 | H65: 1.382464646e+11 | I65: 215969.6718 | J65: 0.2159696718 | K65: 0.0002159696718
B66: 0.11602 | C66: 0.11602 | D66: 0.11 | E66: 1 | F66: 41600000000 | G66: 1.665865385e-11 | H66: 1.382464646e+11 | I66: 0 | J66: 0 | K66: 0
B67: 0.12531 | C67: 0.12531 | D67: 0.65 | E67: 1 | F67: 41600000000 | G67: 1.665865385e-11 | H67: 1.382464646e+11 | I67: 0 | J67: 0 | K67: 0
B68: 0.11949 | C68: 0.11949 | D68: 0.2 | E68: 1 | F68: 41600000000 | G68: 1.665865385e-11 | H68: 1.382464646e+11 | I68: 0 | J68: 0 | K68: 0
B69: 0.12049 | C69: 0.12049 | D69: 0.03 | E69: 1 | F69: 41600000000 | G69: 1.665865385e-11 | H69: 1.382464646e+11 | I69: 0 | J69: 0 | K69: 0
B70: 0.11593 | C70: 0.11593 | D70: 1.71 | E70: 1 | F70: 41600000000 | G70: 1.665865385e-11 | H70: 1.382464646e+11 | I70: 0 | J70: 0 | K70: 0
B71: 0.12759 | C71: 0.12759 | D71: 0.62 | E71: 1 | F71: 41600000000 | G71: 1.665865385e-11 | H71: 1.382464646e+11 | I71: 0 | J71: 0 | K71: 0
B72: 0.12682 | C72: 0.12682 | D72: 1.53 | E72: 1 | F72: 41600000000 | G72: 1.665865385e-11 | H72: 1.382464646e+11 | I72: 0 | J72: 0 | K72: 0
B73: 0.12225 | C73: 0.12226 | D73: 4.86 | E73: 1.000002058 | F73: 41600000000 | G73: 1.665865385e-11 | H73: 1.382464646e+11 | I73: 123538.3024 | J73: 0.1235383024 | K73: 0.0001235383024
B74: 0.12563 | C74: 0.12563 | D74: 0.08 | E74: 1 | F74: 41600000000 | G74: 1.665865385e-11 | H74: 1.382464646e+11 | I74: 0 | J74: 0 | K74: 0
B75: 0.12093 | C75: 0.12093 | D75: 0.06 | E75: 1 | F75: 41600000000 | G75: 1.665865385e-11 | H75: 1.382464646e+11 | I75: 0 | J75: 0 | K75: 0

Sheet Greater_05
A27: Science, Volume 243, 1989, Pages 519–522
A28: Pearson, D.G., 1995. Orogenic ultramafic rocks, Cambridge University Press, Pages 456–510.
A29: Geochimica Cosmochimica Acta, 1995, Volume 59, Pages 959–977
A30: Minerology Magazine, 1994, Volume 58A, Pages 703–704.

Sheet Older_01
A1: Sample | B1: Age | C1: Age | K1: 76523 | L1: -90 | N1: 39229
A2: 1 | B2: 7816 | C2: -31071 | K2: 76523 | L2: -137 | N2: 34329
A3: 2 | B3: 13959 | C3: 1455 | K3: 40384 | L3: -200 | N3: 31482
A4: 3 | B4: 38213 | C4: 1181 | K4: 38213 | L4: -249 | N4: 24677
A5: 4 | B5: 3663 | C5: 4884 | K5: 20034 | L5: -483 | N5: 22664
A6: 5 | B6: 9789 | C6: 2104 | K6: 18704 | L6: -546 | N6: 20073
A7: 6 | B7: 4527 | C7: 7710 | K7: 17711 | L7: -685 | N7: 18606
A8: 7 | B8: -685 | C8: 963 | K8: 13959 | L8: -836 | N8: 10701
A9: 8 | B9: 76523 | C9: 940 | K9: 9789 | L9: -1220 | N9: 10382
A10: 9 | B10: 1038 | C10: 1153 | K10: 9751 | L10: -2394 | N10: 9569
A11: 10 | B11: 76523 | C11: 940 | K11: 7931 | L11: -3328 | N11: 9449
A12: 11 | B12: 1720 | C12: 1871 | K12: 7816 | L12: -6102 | N12: 8862
A13: 12 | B13: 17711 | C13: -249 | K13: 7710 | L13: -7491 | N13: 8044
A14: 13 | B14: 1201 | C14: 732 | K14: 7049 | L14: -31071 | N14: 7441
A15: 14 | B15: 655 | C15: 1471 | K15: 6598 | L15: -64577 | N15: 6736
A16: 15 | B16: -836 | C16: 516 | K16: 6510 | N16: 6106
A17: 16 | B17: 4960 | C17: 5788 | K17: 5788 | N17: 6001
A18: 17 | B18: 2592 | C18: 7931 | K18: 5525 | N18: 5700
A19: 18 | B19: 1391 | C19: 971 | K19: 4960 | N19: 5318
A20: 19 | B20: 1714 | C20: 1958 | K20: 4884 | N20: 4631
A21: 20 | B21: 1240 | C21: 1602 | K21: 4849 | N21: 4461
A22: 21 | B22: 1580 | C22: 1859 | N22: 4180
A23: 22 | B23: 1616 | C23: 1884 | N23: 4147
A24: 23 | B24: 1515 | C24: 1971 | N24: 4102
A25: 24 | B25: 1549 | C25: 1912 | N25: 3777
A26: 25 | B26: 1814 | C26: 2103 | N26: 3645
A27: 26 | B27: 1344 | C27: 1893 | N27: 3469
A28: 27 | B28: 983 | C28: 1482 | N28: 3406
A29: 28 | B29: 1789 | C29: 1982 | N29: 3203
A30: 29 | B30: 1328 | C30: 1665 | N30: 3113
A31: 30 | B31: 1520 | C31: 1779 | N31: 3059
A32: 31 | B32: 423 | C32: 1233 | N32: 3030
A33: 32 | B33: 1538 | C33: 1756 | N33: 3028
A34: 33 | B34: 1211 | C34: 1615 | N34: 2994
A35: 34 | B35: 919 | C35: 1606 | N35: 2987
A36: 35 | B36: 1641 | C36: 18704 | N36: 2965
A37: 36 | B37: 1846 | C37: 2081 | N37: 2868
A38: 37 | B38: 2711 | C38: 2761 | N38: 2798
A39: 38 | B39: 1461 | C39: 1648 | N39: 2715
A40: 39 | B40: 1479 | C40: 1663 | N40: 2681
A41: 40 | B41: 1430 | C41: 1650 | N41: 2642
A42: 41 | B42: 1324 | C42: 1559 | N42: 2545
A43: 42 | B43: 577 | C43: 951 | N43: 2502
A44: 43 | B44: -3328 | C44: 36 | N44: 2489
A45: 44 | B45: 820 | C45: 1292 | N45: 2467
A46: 45 | B46: 2630 | C46: 3242 | N46: 2454
A47: 46 | B47: 686 | C47: 1464 | N47: 2412
A48: 47 | B48: -7491 | C48: 1723 | N48: 2376
A49: 48 | B49: 582 | C49: 1392 | N49: 2287
A50: 49 | B50: 2543 | C50: 1740 | N50: 2280
A51: 50 | B51: -137 | C51: 1062 | N51: 2230
A52: 51 | B52: 1711 | C52: 1215 | N52: 2178
A53: 52 | B53: -200 | C53: 1021 | N53: 2124
A54: 53 | B54: 2184 | C54: -546 | N54: 2118
A55: 54 | B55: 7049 | C55: 40384 | N55: 2093
A56: 55 | B56: -1220 | C56: -90 | N56: 2091
A57: 56 | B57: 9751 | C57: -64577 | N57: 2087
A58: 57 | B58: 1413 | C58: 133 | N58: 2081
A59: 58 | B59: -483 | C59: 258 | N59: 2067
A60: 59 | B60: 6510 | C60: 6598 | N60: 2057
A61: 60 | B61: 2121 | C61: 2078 | N61: 2034
A62: 61 | B62: 625 | C62: 1549 | N62: 2006
A63: 62 | B63: 2286 | C63: 2711 | N63: 1998
A64: 63 | B64: 5 | C64: 635 | N64: 1990
A65: 64 | B65: 20034 | C65: 1432 | N65: 1973
A66: 65 | B66: 4153 | C66: 4318 | N66: 1966
A67: 66 | B67: 4009 | C67: 4139 | N67: 1929
A68: 67 | B68: 1966 | C68: 1878 | N68: 1929
A69: 68 | B69: 4849 | C69: 5525 | N69: 1912
A70: 69 | B70: 3454 | C70: 3590 | N70: 1909
A71: 70 | B71: 1147 | C71: 1674 | N71: 1905
A72: 71 | B72: 500 | C72: 955 | N72: 1886
A73: 72 | B73: -6102 | C73: -2394 | N73: 1886
A74: 73 | B74: 1842 | C74: 2020 | N74: 1879
A75: 74 | B75: 1850 | C75: 2031 | N75: 1866
A76: 75 | B76: 1925 | C76: 2103 | N76: 1858
A77: 76 | B77: 1908 | C77: 2085 | N77: 1841
A78: 77 | B78: 1492 | C78: 1704 | N78: 1780
A79: 78 | B79: 1784 | C79: 1962 | N79: 1768
A80: 79 | B80: 2519 | C80: 2594 | N80: 1744
A81: 80 | B81: 1902 | C81: 2073 | N81: 1739
A82: 81 | B82: 1077 | C82: 1549 | N82: 1698
A83: 82 | B83: 1020 | C83: 1500 | N83: 1692
A84: 83 | B84: 1844 | C84: 2305 | N84: 1629
A85: 84 | B85: 2320 | C85: 2611 | F85: Million Years | G85: Million Years | N85: 1623
A86: Average | B86: =AVERAGE(B2:B85) -> 4510.261905 | C86: =AVERAGE(C2:C85) -> 1399.77381 | E86: Average | F86: 4510.261905 | G86: 1399.77381 | N86: 1622
A87: Maximim | B87: =MAX(B2:B86) -> 76523 | C87: =MAX(C2:C86) -> 40384 | E87: Maximim | F87: 76523 | G87: 40384 | N87: 1567
A88: Minimum | B88: =MIN(B2:B87) -> -7491 | C88: =MIN(C2:C87) -> -64577 | E88: Minimum | F88: -7491 | G88: -64577 | N88: 1562
N89: 1557
N90: 1554
A91: -64577 | B91: 6598 | N91: 1554
A92: -31071 | B92: 7049 | N92: 1539
A93: -7491 | B93: 7710 | N93: 1513
A94: -6102 | B94: 7816 | N94: 1462
A95: -3328 | B95: 7931 | N95: 1440
A96: -2394 | B96: 9751 | N96: 1358
A97: -1220 | B97: 9789 | N97: 1352
A98: -836 | B98: 13959 | N98: 1348
A99: -685 | B99: 17711 | N99: 1342
A100: -546 | B100: 18704 | N100: 1341
A101: -483 | B101: 20034 | N101: 1297
A102: -249 | B102: 38213 | N102: 1284
A103: -200 | B103: 40384 | N103: 1255
A104: -137 | B104: 76523 | N104: 1251
A105: -90 | B105: 76523 | N105: 1241
N106: 1235
N107: 1229
N108: 1229
N109: 1206
N110: 1197
N111: 1189
N112: 1163
N113: 1130
N114: 1127
N115: 1126
N116: 1105
N117: 1033
N118: 990
N119: 987
N120: 986
N121: 986
N122: 982
N123: 975
N124: 964
N125: 961
N126: 949
N127: 938
N128: 921
N129: 912
N130: 905
N131: 901
N132: 897
N133: 882
N134: 875
N135: 841
N136: 804
N137: 801
N138: 765
N139: 763
N140: 759
N141: 729
N142: 727
N143: 719
N144: 715
N145: 708
N146: 704
N147: 701
N148: 695
N149: 694
N150: 692
N151: 691
N152: 681
N153: 680
K154: -90 | N154: 670
K155: -137 | N155: 668
K156: -200 | N156: 659
K157: -249 | N157: 657
K158: -483 | N158: 655
K159: -546 | N159: 642
K160: -685 | N160: 630
K161: -836 | N161: 624
K162: -1220 | N162: 613
K163: -2394 | N163: 607
K164: -3328 | N164: 604
K165: -6102 | N165: 583
K166: -7491 | N166: 574
K167: -31071 | N167: 572
K168: -64577 | N168: 564
N169: 551
N170: 545
N171: 544
N172: 523
N173: 520
N174: 519
N175: 510
N176: 478
N177: 477
N178: 477
N179: 465
N180: 464
N181: 460
N182: 460
N183: 444
N184: 434
N185: 425
N186: 416
N187: 404
N188: 403
N189: 392
N190: 383
N191: 378
N192: 377
N193: 377
N194: 371
N195: 371
N196: 371
N197: 346
N198: 340
N199: 329
N200: 308
... 148 more rows

Sheet Older_04
A1: Sample | B1: Age | C1: Age | J1: -47693 | K1: 39229 | N1: 39229
A2: Number | B2: Million Years | C2: Million Years | J2: -16952 | K2: 34329 | N2: 34329
A3: A3 | B3: 655 | C3: 670 | J3: -15940 | K3: 31482 | N3: 31482
A4: A3-1b | B4: 1692 | C4: 1780 | J4: -12854 | K4: 24677 | N4: 24677
A5: A3-1c | B5: 975 | C5: 982 | J5: -10838 | K5: 22664 | N5: 22664
A6: A7 | B6: 152 | C6: 252 | J6: -10501 | K6: 20073 | N6: 20073
A7: A8 | B7: -2552 | C7: 4180 | J7: -7384 | K7: 18606 | N7: 18606
A8: A8(1-2) | B8: -2902 | C8: 3777 | J8: -7124 | K8: 10701 | N8: 10701
A9: A8(1-2) | B9: -3031 | C9: 3645 | J9: -6558 | K9: 10382 | N9: 10382
A10: A13 | B10: -1835 | C10: -3011 | J10: -6398 | K10: 9569 | N10: 9569
A11: A13(2) | B11: 1229 | C11: 1341 | J11: -6138 | K11: 9449 | N11: 9449
A12: A13(4) | B12: 297 | C12: 477 | J12: -5956 | K12: 8862 | N12: 8862
A13: A15 | B13: -6558 | C13: 8044 | J13: -5892 | K13: 8044 | N13: 8044
A14: MX3 | B14: 607 | C14: 708 | J14: -5000 | K14: 7441 | N14: 7441
A15: MX3-2 | B15: 2093 | C15: 2798 | J15: -4010 | K15: 6736 | N15: 6736
A16: MX3-2 | B16: 1912 | C16: 2502 | J16: -3773 | K16: 6106 | N16: 6106
A17: QL26 | B17: -5892 | C17: -15940 | J17: -3503 | K17: 6001 | N17: 6001
A18: QL26-1-1 | B18: 2868 | C18: -10838 | J18: -3031 | K18: 5700 | N18: 5700
A19: QL26-2 | B19: 3059 | C19: 39229 | J19: -3011 | K19: 5318 | N19: 5318
A20: QL26-3 | B20: 1130 | C20: -712 | J20: -2924 | N20: 4631
A21: QL26-4 | B21: 1622 | C21: -840 | J21: -2902 | N21: 4461
A22: QL26-5 | B22: -1432 | C22: 604 | J22: -2882 | N22: 4180
A23: QL27 | B23: 921 | C23: 3406 | J23: -2830 | N23: 4147
A24: QL27-1-1 | B24: 1255 | C24: 2287 | J24: -2814 | N24: 4102
A25: QL27-2 | B25: 460 | C25: -6398 | J25: -2741 | N25: 3777
A26: QL27-3 | B26: 1929 | C26: 2965 | J26: -2552 | N26: 3645
A27: QL27-4 | B27: 2118 | C27: 9449 | J27: -2386 | N27: 3469
A28: QL27-4-1 | B28: 2067 | C28: 10382 | J28: -2121 | N28: 3406
A29: Q9332 | B29: 1768 | C29: 2057 | J29: -2004 | N29: 3203
A30: Q9332-2 | B30: 2006 | C30: 2091 | J30: -1979 | N30: 3113
A31: Q9335 | B31: 961 | C31: -4010 | J31: -1917 | N31: 3059
A32: Q9335-1-1 | B32: 434 | C32: 572 | J32: -1916 | N32: 3030
A33: Q9335-3 | B33: 1342 | C33: 4102 | J33: -1867 | N33: 3028
A34: Q9335-4 | B34: 1513 | C34: -1860 | J34: -1860 | N34: 2994
A35: Q9335-5 | B35: 378 | C35: 613 | J35: -1841 | N35: 2987
A36: Q9335-7 | B36: 181 | C36: -7124 | J36: -1835 | N36: 2965
A37: Q9347 | B37: -181 | C37: -595 | J37: -1798 | N37: 2868
A38: Q9347-2 | B38: 1126 | C38: 1554 | J38: -1644 | N38: 2798
A39: NTS-1 | B39: 912 | C39: 2715 | J39: -1567 | N39: 2715
A40: NTS-2 | B40: 1744 | C40: 6736 | J40: -1432 | N40: 2681
A41: NTS-2-4 | B41: 987 | C41: 1539 | J41: -1098 | N41: 2642
A42: NTS-2-6 | B42: 701 | C42: 1241 | J42: -1001 | N42: 2545
A43: NTS-2-7 | B43: 1841 | C43: -2004 | J43: -840 | N43: 2502
A44: NTS-2-8 | B44: 1866 | C44: 22664 | J44: -712 | N44: 2489
A45: NTS-6 | B45: 1297 | C45: 1352 | J45: -595 | N45: 2467
A46: NTS-7 | B46: 1966 | C46: -1841 | J46: -515 | N46: 2454
A47: NTS-7-2 | B47: 2545 | C47: -6138 | J47: -497 | N47: 2412
A48: NTS-7-3 | B48: 1990 | C48: 20073 | J48: -453 | N48: 2376
A49: NTS-7-4 | B49: 3113 | C49: -5000 | J49: -407 | N49: 2287
A50: NTS-8 | B50: 2230 | C50: -5956 | J50: -316 | N50: 2280
A51: NTS-8-2 | B51: 1973 | C51: -2924 | J51: -315 | N51: 2230
A52: NTS-9 | B52: 692 | C52: -7384 | J52: -310 | N52: 2178
A53: NTS-11 | B53: 1623 | C53: -10501 | J53: -286 | N53: 2124
A54: NTS-11-2 | B54: -286 | C54: 1554 | J54: -231 | N54: 2118
A55: KPH9810 | B55: 630 | C55: 964 | J55: -183 | N55: 2093
A56: KPH9816 | B56: 1629 | C56: 3469 | J56: -181 | N56: 2091
A57: KPH9816/3-1-s1 | B57: 119 | C57: 181 | G57: =(72/348)*100 -> 20.68965517 | J57: -168 | N57: 2087
A58: KPH9816/3-1-s4 | B58: 383 | C58: 1348 | G58: =(19/348)*100 -> 5.459770115 | J58: -154 | N58: 2081
A59: KPH9822 | B59: 1251 | C59: -1644 | J59: -142 | N59: 2067
A60: KPH9822-s4 | B60: 124 | C60: 161 | J60: -118 | N60: 2057
A61: KPH9822-s4-2 | B61: 104 | C61: 146 | J61: -114 | N61: 2034
A62: KPH9826 | B62: 1189 | C62: 1886 | J62: -110 | N62: 2006
A63: KPH9826-s2 | B63: 70 | C63: 252 | J63: -98 | N63: 1998
A64: KPH9826-s4 | B64: 510 | C64: 1229 | J64: -97 | N64: 1990
A65: KP0201 | B65: 1033 | C65: -1098 | J65: -49 | N65: 1973
A66: KP0201-s4 | B66: 371 | C66: 1127 | J66: -42 | N66: 1966
A67: KP0201-s5 | B67: 116 | C67: 70 | J67: -31 | N67: 1929
A68: KP0201-s7 | B68: 216 | C68: 172 | J68: -30 | N68: 1929
A69: KP0214 | B69: 875 | C69: -12854 | J69: -19 | N69: 1912
A70: KP0214-11-s3-1 | B70: 4461 | C70: 340 | J70: -18 | N70: 1909
A71: KP0214-11-s6 | B71: 173 | C71: 223 | J71: -15 | N71: 1905
A72: KP0214-16-s0-1 | B72: 267 | C72: 425 | J72: -10 | N72: 1886
A73: KP0215 | B73: 329 | C73: -2386 | J73: -7 | N73: 1886
A74: KP0215-s4 | B74: 158 | C74: 523 | J74: 6 | N74: 1879
A75: KP0215-s5 | B75: 82 | C75: 170 | J75: 32 | N75: 1866
A76: KP0215-s6 | B76: 131 | C76: 759 | J76: 65 | N76: 1858
A77: KP0215-s7 | B77: 120 | C77: 225 | J77: 67 | N77: 1841
A78: KP0215-s8 | B78: 292 | C78: 31482 | J78: 68 | N78: 1780
A79: TC0242 | B79: 1929 | C79: 2280 | J79: 70 | N79: 1768
A80: TC0242/2-s11 | B80: 149 | C80: 392 | J80: 70 | N80: 1744
A81: TC0242/2-s12 | B81: 147 | C81: 841 | J81: 70 | N81: 1739
A82: TC0242/2-s13 | B82: 260 | C82: 804 | J82: 71 | N82: 1698
A83: KPH9801 | B83: 986 | C83: 2087 | J83: 74 | N83: 1692
A84: KPH9801/2-1-s2 | B84: 210 | C84: 478 | J84: 74 | N84: 1629
A85: TC0248 | B85: 1235 | C85: 2642 | J85: 79 | N85: 1623
A86: TC0248-s11 | B86: 68 | C86: 127 | J86: 82 | N86: 1622
A87: TC0248-s12 | B87: 210 | C87: 444 | J87: 91 | N87: 1567
A88: TC0248-s13 | B88: 694 | C88: 9569 | J88: 95 | N88: 1562
A89: TC0248-s16 | B89: 111 | C89: 158 | J89: 104 | N89: 1557
A90: TC0248-s18 | B90: 209 | C90: 574 | J90: 110 | N90: 1554
A91: TC0248-s30 | B91: 111 | C91: 178 | J91: 111 | N91: 1554
A92: TC0248-s31 | B92: 297 | C92: 371 | J92: 111 | N92: 1539
A93: TC0223 | B93: -49 | C93: -183 | J93: 114 | N93: 1513
A94: TC0223-s2 | B94: 159 | C94: 2178 | J94: 116 | N94: 1462
A95: TC0223-s3 | B95: 74 | C95: 79 | J95: 117 | N95: 1440
A96: TC0223-s7 | B96: 186 | C96: 465 | J96: 119 | N96: 1358
A97: TC0223-s8 | B97: 141 | C97: 155 | J97: 120 | N97: 1352
A98: TC0223-s11 | B98: 154 | C98: 901 | J98: 124 | N98: 1348
A99: TC0223-s12 | B99: 67 | C99: 70 | J99: 127 | N99: 1342
A100: TC0223-s13 | B100: 289 | C100: 519 | J100: 131 | N100: 1341
A101: TC0223-s14 | B101: 150 | C101: 308 | J101: 134 | N101: 1297
A102: TC0223-s15 | B102: 134 | C102: 248 | J102: 134 | N102: 1284
A103: PS1-1 | B103: -7 | C103: -10 | J103: 141 | N103: 1255
A104: PSS-4 | B104: 624 | C104: 1197 | J104: 142 | N104: 1251
A105: PSS-4-4 | B105: 1886 | C105: 3203 | J105: 146 | N105: 1241
A106: PSS-5 | B106: -1917 | C106: 8862 | J106: 147 | N106: 1235
A107: PSS-10 | B107: -2741 | C107: -2830 | J107: 147 | N107: 1229
A108: PSS-12 | B108: -2814 | C108: 5318 | J108: 148 | N108: 1229
A109: TS2 | B109: 544 | C109: 727 | J109: 149 | N109: 1206
A110: TS2-1R | B110: 267 | C110: 2081 | J110: 149 | N110: 1197
A111: TS2-2 | B111: 1358 | C111: 1462 | J111: 150 | N111: 1189
A112: TS2-2R | B112: 668 | C112: 1909 | J112: 152 | N112: 1163
A113: TS2-3 | B113: 659 | C113: 1163 | J113: 154 | N113: 1130
A114: TS2-4 | B114: 477 | C114: 564 | J114: 155 | N114: 1127
A115: TS2-5 | B115: 801 | C115: 34329 | J115: 158 | N115: 1126
A116: TS2-2(3) | B116: 882 | C116: 1440 | J116: 158 | N116: 1105
A117: TS2-3(3) | B117: 1105 | C117: 4631 | J117: 159 | N117: 1033
A118: TS2-4(3) | B118: 938 | C118: -47693 | J118: 161 | N118: 990
A119: TS2-(1) | B119: -1001 | C119: -1867 | J119: 161 | N119: 987
A120: TS2-(2) | B120: -3773 | C120: 6001 | J120: 168 | N120: 986
A121: TS3 | B121: 1998 | C121: -497 | J121: 170 | N121: 986
A122: TS3-1-1 | B122: -18 | C122: -118 | J122: 172 | N122: 982
A123: TS3(1) | B123: -1567 | C123: 10701 | J123: 173 | N123: 975
A124: TS3-3 | B124: 147 | C124: 280 | J124: 178 | N124: 964
A125: TS3-3-1 | B125: -110 | C125: -315 | J125: 181 | N125: 961
A126: TS3-3-2 | B126: -31 | C126: -97 | J126: 181 | N126: 949
A127: TS3-3-3 | B127: 6 | C127: -15 | J127: 186 | N127: 938
A128: FS2 | B128: 32 | C128: -42 | J128: 209 | N128: 921
A129: FS2-1-1 | B129: -19 | C129: 71 | J129: 209 | N129: 912
A130: FS2-2 | B130: -3503 | C130: 2034 | J130: 210 | N130: 905
A131: DM02-4 | B131: 1739 | C131: 3028 | J131: 210 | N131: 901
A132: DM02-4-2 | B132: 680 | C132: 990 | J132: 216 | N132: 897
A133: DM02-4-2b | B133: 520 | C133: 765 | J133: 223 | N133: 882
A134: DM02-4-3 | B134: 95 | C134: 117 | J134: 225 | N134: 875
A135: DM02-5 | B135: 1284 | C135: -2121 | J135: 243 | N135: 841
A136: DM02-5-2 | B136: 243 | C136: 91 | J136: 248 | N136: 804
A137: DM02-6 | B137: 657 | C137: -316 | J137: 252 | N137: 801
A138: DM02-11 | B138: 551 | C138: 695 | J138: 252 | N138: 765
A139: DM02-11-5 | B139: 65 | C139: 74 | J139: 260 | N139: 763
A140: DM02-13 | B140: -515 | C140: 460 | J140: 267 | N140: 759
A141: DM02-13-2 | B141: 464 | C141: 1698 | J141: 267 | N141: 729
A142: DM02-15 | B142: 905 | C142: 5700 | J142: 276 | N142: 727
A143: DM02-15-3 | B143: 416 | C143: 1858 | J143: 280 | N143: 719
A144: DM02-17 | B144: 276 | C144: 403 | J144: 289 | N144: 715
A145: DM02-17-2 | B145: 377 | C145: 729 | J145: 292 | N145: 708
A146: DM02-17-2-1 | B146: 149 | C146: 168 | J146: 294 | N146: 704
A147: DM02-17-3 | B147: 110 | C147: 148 | J147: 297 | N147: 701
A148: DM02-17-3-1 | B148: 209 | C148: 294 | J148: 297 | N148: 695
A149: DM02-17-4 | B149: 142 | C149: 161 | J149: 308 | N149: 694
A150: DM02-17-5 | B150: 681 | C150: 719 | J150: 329 | N150: 692
A151: DM02-17-7 | B151: 114 | C151: 134 | J151: 340 | N151: 691
A152: DM02-19 | B152: 346 | C152: -2882 | J152: 346 | N152: 681
A153: Hb028 | B153: 2987 | C153: 2994 | J153: 371 | N153: 680
A154: Hb003 | B154: 2454 | C154: 2489 | J154: 371 | N154: 670
A155: YT01 | B155: 1557 | C155: 2124 | J155: 371 | N155: 668
A156: YT03 | B156: -1798 | C156: 24677 | J156: 377 | N156: 659
A157: YT03-3 | B157: -231 | C157: -310 | J157: 377 | N157: 657
A158: YT05 | B158: -114 | C158: -168 | J158: 378 | N158: 642
A159: YT05-4-2 | B159: -407 | C159: -453 | J159: 383 | N159: 630
A160: YT07 | B160: 371 | C160: 377 | J160: 392 | N160: 624
A161: YT-08 | B161: 763 | C161: 1879 | J161: 403 | N161: 613
A162: YT-08-8 | B162: 404 | C162: -1979 | J162: 404 | N162: 607
A163: YT-08-8b | B163: 642 | C163: 3030 | J163: 416 | N163: 604
A164: YT09 | B164: -98 | C164: -154 | J164: 425 | N164: 583
A165: YT09-1-1 | B165: 583 | C165: 2376 | J165: 434 | N165: 574
A166: YT09-1-2 | B166: 2681 | C166: 18606 | J166: 444 | N166: 572
A167: YT09-2 | B167: 1905 | C167: 6106 | J167: 460 | N167: 564
A168: YT09-2-1 | B168: -30 | C168: -142 | G168: Million Years | H168: Million Years | J168: 460 | N168: 551
A169: YT09-2-2 | B169: -1916 | C169: -16952 | F169: Average | G169: 461.6954023 | H169: 1369.212644 | J169: 464 | N169: 545
A170: YT09-2-3 | B170: 691 | C170: 1206 | F170: Maximim | G170: 4461 | H170: 39229 | J170: 465 | N170: 544
A171: YT09-2b | B171: 897 | C171: 2412 | F171: Minimum | G171: -6558 | H171: -47693 | J171: 477 | N171: 523
A172: YT09-3 | B172: 1567 | C172: 4147 | J172: 477 | N172: 520
A173: YT09(1) | B173: 545 | C173: 986 | J173: 478 | N173: 519
A174: YT09(2) | B174: 715 | C174: 1562 | J174: 510 | N174: 510
A175: YT09(3) | B175: 949 | C175: 7441 | J175: 519 | N175: 478
A176: YT09(4) | B176: 704 | C176: 2467 | J176: 520 | N176: 477
A177: Average | B177: =AVERAGE(B3:B176) -> 461.6954023 | C177: =AVERAGE(C3:C176) -> 1369.212644 | J177: 523 | N177: 477
A178: Maximim | B178: =MAX(B3:B177) -> 4461 | C178: =MAX(C3:C177) -> 39229 | J178: 544 | N178: 465
A179: Minimum | B179: =MIN(B3:B178) -> -6558 | C179: =MIN(C3:C178) -> -47693 | J179: 545 | N179: 464
J180: 551 | N180: 460
J181: 564 | N181: 460
J182: 572 | N182: 444
J183: 574 | N183: 434
J184: 583 | N184: 425
A185: -47693 | B185: 5318 | J185: 604 | N185: 416
A186: -16952 | B186: 5700 | J186: 607 | N186: 404
A187: -15940 | B187: 6001 | J187: 613 | N187: 403
A188: -12854 | B188: 6106 | J188: 624 | N188: 392
A189: -10838 | B189: 6736 | J189: 630 | N189: 383
A190: -10501 | B190: 7441 | J190: 642 | N190: 378
A191: -7384 | B191: 8044 | J191: 655 | N191: 377
A192: -7124 | B192: 8862 | J192: 657 | N192: 377
A193: -6558 | B193: 9449 | J193: 659 | N193: 371
A194: -6398 | B194: 9569 | J194: 668 | N194: 371
A195: -6138 | B195: 10382 | J195: 670 | N195: 371
A196: -5956 | B196: 10701 | J196: 680 | N196: 346
A197: -5892 | B197: 18606 | J197: 681 | N197: 340
A198: -5000 | B198: 20073 | J198: 691 | N198: 329
A199: -4010 | B199: 22664 | J199: 692 | N199: 308
A200: -3773 | B200: 24677 | J200: 694 | N200: 297
... 148 more rows

Sheet Older_05
A1: Sample | B1: Age | H1: 206Pb/238U | I1: 207Pb/235U | J1: 207Pb/206Pb
A2: Number | B2: Billion Years | H2: 2701 | I2: 2794 | J2: 2870
A3: 81-3 | B3: 2.28 | D3: 1.39 | H3: 2435 | I3: 2695 | J3: 2905
A4: 81-4 | B4: 3.64 | D4: 2.28 | H4: 2223 | I4: 2576 | J4: 2881
A5: 81-5w | B5: 5.8 | D5: 2.31 | H5: 1957 | I5: 2461 | J5: 2918
A6: 81-7 | B6: 7.58 | D6: 2.79 | H6: 1457 | I6: 2088 | J6: 2796
A7: 81-8 | B7: 3.37 | D7: 3.07 | H7: 2427 | I7: 2673 | J7: 2879
A8: 81-10A | B8: 4.61 | D8: 3.11 | H8: 1990 | I8: 2427 | J8: 2829
A9: 81-18 | B9: 6.22 | D9: 3.31 | H9: 1801 | I9: 2324 | J9: 2833
A10: 81-21 | B10: 3.31 | D10: 3.37 | H10: 2673 | I10: 2813 | J10: 2933
A11: 86-13w | B11: 3.95 | D11: 3.64 | H11: 2235 | I11: 2582 | J11: 2877
A12: 86-71Aw | B12: 3.07 | D12: 3.69 | H12: 1686 | I12: 2250 | J12: 2821
A13: 86-72Aw | B13: 3.11 | D13: 3.84 | H13: 1573 | I13: 2159 | J13: 2791
A14: 86-72Bw | B14: 1.39 | D14: 3.95 | H14: 2705 | I14: 2814 | J14: 2911
A15: 86-74Bw | B15: 5.16 | D15: 4.61 | H15: 2434 | I15: 2692 | J15: 2904
A16: 81-2 | B16: 77.16 | D16: 5.07 | H16: 2625 | I16: 2756 | J16: 2867
A17: 81-11 | B17: 5.64 | D17: 5.16 | H17: 2611 | I17: 2757 | J17: 2879
A18: 86-15w | B18: 3.84 | D18: 5.64 | H18: 2748 | I18: 2809 | J18: 2866
A19: 86-19w | B19: 8.52 | D19: 5.8 | H19: 2509 | I19: 2707 | J19: 2872
A20: 86-58w | B20: 5.07 | D20: 6.22 | H20: 2621 | I20: 2771 | J20: 2896
A21: 86-73Aw | B21: 15.51 | D21: 7.58 | H21: 1204 | I21: 1873 | J21: 2743
A22: 86-90w | B22: 2.31 | D22: 8.52 | H22: 2278 | I22: 2596 | J22: 2865
A23: 86-107 | B23: 3.69 | D23: 15.51 | H23: 2393 | I23: 2663 | J23: 2890
A24: 86-107w | B24: 2.79 | D24: 77.16 | H24: 2656 | I24: 2772 | J24: 2871
A25: Average | B25: =AVERAGE(B3:B24)*1000 -> 8091.818182 | H25: 2284 | I25: 2616 | J25: 2892
A26: Maximim | B26: =MAX(B3:B24)*1000 -> 77160 | H26: 2586 | I26: 2767 | J26: 2917
A27: Minimum | B27: =MIN(B3:B26)*1000 -> 1390 | H27: 2051 | I27: 2476 | J27: 2855
H28: 2233 | I28: 2576 | J28: 2871
A29: Statistics | B29: Re/Os | C29: 206Pb/238U | D29: 207Pb/235U | E29: 207Pb/206Pb | H29: 2339 | I29: 2636 | J29: 2884
A30: Average | B30: 8.091818182 | C30: 2366.526316 | D30: 2649.175439 | E30: 2910.175439 | H30: 2610 | I30: 2766 | J30: 2895
A31: Maximim | B31: 77.16 | C31: 3185 | D31: 3412 | E31: 3562 | H31: 2406 | I31: 2661 | J31: 2875
A32: Minimum | B32: 1.39 | C32: 1204 | D32: 1873 | E32: 2743 | H32: 2032 | I32: 2452 | J32: 2836
H33: 2996 | I33: 2914 | J33: 2870
H34: 2638 | I34: 2808 | J34: 2944
H35: 2595 | I35: 2757 | J35: 2890
H36: 2706 | I36: 2799 | J36: 2881
H37: 2617 | I37: 2779 | J37: 2911
H38: 2812 | I38: 2809 | J38: 2812
H39: 2323 | I39: 2646 | J39: 2915
H40: 2874 | I40: 2853 | J40: 2853
H41: 1413 | I41: 2060 | J41: 2803
H42: 1379 | I42: 2037 | J42: 2803
H43: 2374 | I43: 2660 | J43: 2899
H44: 2338 | I44: 2638 | J44: 2896
H45: 1971 | I45: 2445 | J45: 2878
H46: 2656 | I46: 2787 | J46: 2899
H47: 2480 | I47: 2696 | J47: 2876
H48: 2608 | I48: 2761 | J48: 2890
H49: 2604 | I49: 2743 | J49: 2862
H50: 3110 | I50: 2943 | J50: 2843
H51: 2043 | I51: 2469 | J51: 2852
H52: 2639 | I52: 2742 | J52: 2836
H53: 2820 | I53: 2846 | J53: 2878
H54: 2602 | I54: 2766 | J54: 2904
H55: 3185 | I55: 3412 | J55: 3562
H56: 2378 | I56: 3016 | J56: 3489
H57: 2182 | I57: 2762 | J57: 3232
H58: 2066 | I58: 2853 | J58: 3480
G59: Average | H59: =AVERAGE(H2:H58) -> 2366.526316 | I59: =AVERAGE(I2:I58) -> 2649.175439 | J59: =AVERAGE(J2:J58) -> 2910.175439
G60: Maximum | H60: =MAX(H2:H59) -> 3185 | I60: =MAX(I2:I59) -> 3412 | J60: =MAX(J2:J59) -> 3562
G61: Minimum | H61: =MIN(H2:H60) -> 1204 | I61: =MIN(I2:I60) -> 1873 | J61: =MIN(J2:J60) -> 2743

Sheet Older_06
A2: Sample | B2: Nd/Sm | C2: Rb/Sr | D2: Ratio
A3: UV61/91 | B3: 258 | C3: 5454 | D3: =(C3/B3) -> 21.13953488
A4: IJV&1/91 | B4: 959 | C4: 6245 | D4: =(C4/B4) -> 6.511991658
A5: UV417/89 | B5: 434 | C5: 12716 | D5: 29.29953917
A6: M42-72 | B6: 2038 | C6: 1351 | D6: 0.6629048086
A7: M48-72 | B7: 1157 | C7: 4026 | D7: 3.47968885

Sheet Older_07
A1: Sample | H1: -24.71
A2: Number | B2: TMA (Billion Years) | C2: TRD (Billion Years) | H2: -12.07
A3: 85N8/10 | B3: 0.55 | C3: 0.35 | H3: -9.6
A4: 85N8/10 | B4: -1.82 | C4: -1.75 | H4: -3.61
A5: 85N8/10 | B5: -0.66 | C5: -0.48 | H5: -3.51
A6: 85N8/10 | B6: 1.51 | C6: 0.87 | H6: -1.82
A7: 94CH3/18 | B7: 2.2 | C7: 1.82 | H7: -1.75
A8: 94CH3/18 | B8: 3.88 | C8: -1.04 | H8: -1.57
A9: 94CH3/18 | B9: 4.84 | C9: 3.36 | H9: -1.04
A10: 05CHSH-20 | B10: 1.15 | C10: 1.09 | H10: -0.95
A11: 05CHSH-20 | B11: 2.09 | C11: 1.29 | H11: -0.9
A12: 05CHSH-8 | B12: 1.75 | C12: 0.9 | H12: -0.66
A13: 05CHSH-8 | B13: 1.46 | C13: 0.76 | H13: -0.48 | J13: =(13/54)*100 -> 24.07407407
A14: 05CHSH-8 | B14: 3.7 | C14: 2.13 | H14: 0.35
A15: 05CHSH-8 | B15: 8.62 | C15: 2.16 | H15: 0.44
A16: 05CHSH-8 | B16: -3.61 | C16: 1.7 | H16: 0.55
A17: 05CHSH-8 | B17: -12.07 | C17: 1.41 | H17: 0.76
A18: 05CHSH-8 | B18: -9.6 | C18: 1.94 | H18: 0.87
A19: 05ATMTQ-1 | B19: 1.43 | C19: 1.23 | H19: 0.9
A20: 05ATMTQ-8 | B20: 3.42 | C20: 1.8 | H20: 0.9
A21: 05ATMTQ-7 | B21: 0.9 | C21: 0.44 | H21: 0.97
A22: 05ATMTQ-8 | B22: 2.36 | C22: 1.6 | H22: 1.01
A23: 05ATMTQ-9 | B23: 1.61 | C23: 1.01 | H23: 1.08
A24: 05ATMTQ-9 | B24: 1.57 | C24: 1.08 | H24: 1.09
A25: 05ATMTQ-7 | B25: 1.4 | C25: 1.27 | H25: 1.11
A26: 94A4/26 | B26: 1.11 | C26: 0.97 | H26: 1.15
A27: 05ATMTQ-8 | B27: -24.71 | C27: 1.17 | H27: 1.17
A28: 94A4/26 | B28: -1.57 | C28: -0.9 | H28: 1.23
A29: 94A4/26 | B29: -3.51 | C29: -0.95 | H29: 1.27
A30: Average | B30: =AVERAGE(B3:B29) -> -0.4444444444 | C30: =AVERAGE(C3:C29) -> 0.9344444444 | H30: 1.29
A31: Maximim | B31: =MAX(B3:B30) -> 8.62 | C31: =MAX(C3:C30) -> 3.36 | H31: 1.4
A32: Minimum | B32: =MIN(B3:B31) -> -24.71 | C32: =MIN(C3:C31) -> -1.75 | H32: 1.41
H33: 1.43
H34: 1.46
B35: Billion Years | C35: Billion Years | H35: 1.51
A36: Average | B36: -0.4444444444 | C36: 0.9344444444 | H36: 1.57
A37: Maximim | B37: 8.62 | C37: 3.36 | H37: 1.6
A38: Minimum | B38: -24.71 | C38: -1.75 | H38: 1.61
H39: 1.7
H40: 1.75
H41: 1.8
H42: 1.82
H43: 1.94
H44: 2.09
H45: 2.13
H46: 2.16
H47: 2.2
H48: 2.36
H49: 3.36
H50: 3.42
H51: 3.7
H52: 3.88
H53: 4.84
H54: 8.62

Sheet Older_09
A1: Sample | B1: TMA | C1: TRD
A2: Number | B2: (Billion Years) | C2: (Billion Years)
A3: 1 | B3: 0.8363 | C3: 0.7488
A4: 2
A5: 3
A6: 4 | C6: 0.0561
A7: 5 | B7: <0 | C7: 0.1443
A8: 6 | B8: <0 | C8: <0
A9: 7
A10: 8
A11: 9 | B11: 0.966 | C11: 0.3217
A12: 10 | B12: 0.6242 | C12: 0.3635
A13: 11 | C13: 0.217
A14: 12 | C14: 0.675
A15: 13 | B15: 0.8074 | C15: <0
A16: 14 | C16: 0.3482
A17: 15 | C17: 0.5417
A18: 16 | C18: 0.1764

Sheet Older_11
A1: Sample | B1: TDM | C1: Table 4 | H1: -3.22
A2: Number | B2: (Billion Years) | C2: Page 1099 | H2: -0.8
A3: 85N6/2 | B3: -0.8 | H3: -0.5
A4: 94CH2/7 | B4: 2.29 | H4: -0.46
A5: 94CH2/7 | B5: 2.26 | H5: -0.38
A6: 94CH2/7 | B6: 2.29 | H6: -0.05
A7: 94CH6/23 | B7: 2.26 | H7: 0.12
A8: 94CH6/30 | B8: 2.28 | H8: 0.36
A9: 94CH6/30 | B9: 2.28 | H9: 0.42
A10: 85N5/1 | B10: 0.12 | H10: 0.89
A11: 85N5/4 | B11: 1.37 | H11: 0.92
A12: 85N5/4 | B12: 1.37 | H12: 1.37
A13: 94MB7/4 | B13: 3.08 | H13: 1.37
A14: 94MB7/7 | B14: -0.5 | H14: 1.73
A15: 94MB4/4 | B15: 1.74 | H15: 1.74
A16: 94MB4/33 | B16: 2.48 | H16: 2.26
A17: 94MB4/38 | B17: -0.05 | H17: 2.26
A18: 94A4/13 | B18: 9.73 | H18: 2.27
A19: Average | B19: =AVERAGE(B3:B18) -> 2.0125 | D19: Average | E19: 2.0125 | F19: 1.497333333 | H19: 2.28
A20: Maximim | B20: =MAX(B3:B19) -> 9.73 | D20: Maximim | E20: 9.73 | F20: 3.97 | H20: 2.28
A21: Minimum | B21: =MIN(B3:B20) -> -0.8 | D21: Minimum | E21: -0.8 | F21: -3.22 | H21: 2.29
H22: 2.29
H23: 2.35
A24: Sample | B24: TDM | H24: 2.48
A25: Number | B25: (Billion Years) | H25: 3.08
A26: 85N6/2 | B26: 3.48 | H26: 3.13
A27: 94CH2/7 | B27: 3.13 | H27: 3.13
A28: 94CH2/7 | B28: 3.13 | H28: 3.48
A29: 94CH6/23 | B29: 1.73 | H29: 3.87
A30: 94CH6/30 | B30: 3.87 | H30: 3.97
A31: 85N5/1 | B31: 0.89 | H31: 9.73
A32: 85N5/4 | B32: 0.92
A33: 94MB7/4 | B33: 2.27
A34: 94MB7/4 | B34: 2.35
A35: 94MB7/7 | B35: -0.46
A36: 94MB7/7 | B36: 0.36
A37: 94MB4/4 | B37: -0.38
A38: 94MB4/33 | B38: 3.97
A39: 94MB4/38 | B39: 0.42
A40: 94A4/13 | B40: -3.22
A41: Average | B41: =AVERAGE(B26:B40) -> 1.497333333
A42: Maximim | B42: =MAX(B26:B41) -> 3.97
A43: Minimum | B43: =MIN(B26:B42) -> -3.22
C47: 85N6/2 | D47: 0.283073 | E47: 2.4e-05 | F47: 0.035842 | G47: 0.282865 | H47: 2.8e-05 | I47: 0.2 | J47: 0.78 | K47: 10.7 | L47: 9.9 | M47: 3.48
C48: 94CH2/7 | D48: 0.282764 | E48: 8.7e-05 | F48: 0.030578 | G48: 0.282586 | H48: 8.8e-05 | I48: 0.07 | J48: 0.32 | K48: -0.3 | L48: 0.4 | M48: 3.13
D49: 0.282764 | E49: 8.7e-05 | F49: 0.031564 | G49: 0.282586 | H49: 8.8e-05 | I49: 0.07 | J49: 0.31 | K49: -0.3 | L49: 0.4 | M49: 3.13
C50: 94CH6/23 | D50: 0.282866 | E50: 4.3e-05 | F50: 0.027055 | G50: 0.282709 | H50: 4.5e-05 | I50: 0.06 | J50: 0.31 | K50: 3.3 | L50: 5 | M50: 1.73
C51: 94CH6/30 | D51: 0.282059 | E51: 0.00026 | F51: 0.023023 | G51: 0.281925 | H51: 0.00026 | I51: 0.14 | J51: 0.85 | K51: -25.2 | L51: -22.5 | M51: 3.87
C52: 85N5/1 | D52: 0.282868 | E52: 1.7e-05 | F52: 0.016254 | G52: 0.282773 | H52: 1.9e-05 | I52: 0.1 | J52: 0.86 | K52: 3.4 | L52: 8 | M52: 0.89
C53: 85N5/4 | D53: 0.282905 | E53: 4.3e-05 | F53: 0.019186 | G53: 0.282794 | H53: 4.3e-05 | I53: 0.07 | J53: 0.51 | K53: 4.7 | L53: 8.6 | M53: 0.92
C54: 94MB7/4 | D54: 0.282564 | E54: 0.000206 | F54: 0.023057 | G54: 0.28243 | H54: 0.000206 | I54: 0.16 | J54: 0.97 | K54: -7.4 | L54: -4.6 | M54: 2.27
C55: 94MB7/4 | D55: 0.282539 | E55: 0.000186 | F55: 0.023057 | G55: 0.282405 | H55: 0.000186 | I55: 0.16 | J55: 0.97 | K55: -8.2 | L55: -5.5 | M55: 2.35
C56: 94MB7/7 | D56: 0.283112 | E56: 0.000126 | F56: 0.05411 | G56: 0.282798 | H56: 0.000127 | I56: 0.6 | J56: 1.55 | K56: 12 | L56: 6.3 | M56: -0.46
C57: 94MB7/7 | D57: 0.28336 | E57: 1.7e-05 | F57: 0.05411 | G57: 0.283046 | H57: 2.7e-05 | I57: 0.6 | J57: 1.55 | K57: 20.8 | L57: 15.1 | M57: 0.36
C58: 94MB4/4 | D58: 0.283001 | E58: 2e-05 | F58: 0.072846 | G58: 0.282578 | H58: 3.5e-05 | I58: 0.37 | J58: 0.71 | K58: 8.1 | L58: -2.8 | M58: -0.38
C59: 94MB4/33 | D59: 0.282785 | E59: 1.6e-05 | F59: 0.032553 | G59: 0.282596 | H59: 2e-05 | I59: 0.17 | J59: 0.73 | K59: 0.5 | L59: 0.6 | M59: 3.97
C60: 94MB4/38 | D60: 0.283307 | E60: 7e-06 | F60: 0.045178 | G60: 0.283044 | H60: 1.9e-05 | I60: 0.85 | J60: 2.63 | K60: 18.9 | L60: 15.6 | M60: 0.42
C61: 94A4/13 | D61: 0.282911 | E61: 2.1e-05 | F61: 0.044042 | G61: 0.282655 | H61: 2.7e-05 | I61: 0.23 | J61: 0.73 | K61: 4.9 | L61: 1.9 | M61: -3.22
A65: Initial | B65: Today | C65: Today | D65: The Ratio | E65: Half | F65: Decay | G65: 2.303/Delta | H65: Age | I65: Age | J65: Age | K65: Tdm
A66: 176Hf/177Hf | B66: 176Hf/177Hf | C66: 176Lu/177Hf | D66: Plus One | E66: Life | F66: Constant | G66: Constant | H66: Years | I66: Million Years | J66: Billion Years | K66: Billion Years
A67: 0.282865 | B67: 0.283073 | C67: 0.035842 | D67: =1+((B67-A67)/C67) -> 1.005803248 | E67: 37300000000 | F67: =(0.693/E67) -> 1.857908847e-11 | G67: =(2.303/F67) -> 1.239565657e+11 | H67: =(LOG(D67))*(G67) -> 311507009.3 | I67: =(H67/1000000) -> 311.5070093 | J67: =(I67/1000) -> 0.3115070093 | K67: 3.48
A68: 0.282586 | B68: 0.282764 | C68: 0.030578 | D68: =1+((B68-A68)/C68) -> 1.005821179 | E68: 37300000000 | F68: 1.857908847e-11 | G68: =(2.303/F68) -> 1.239565657e+11 | H68: =(LOG(D68))*(G68) -> 312466724.5 | I68: =(H68/1000000) -> 312.4667245 | J68: =(I68/1000) -> 0.3124667245 | K68: 3.13
A69: 0.282586 | B69: 0.282764 | C69: 0.031564 | D69: 1.005639336 | E69: 37300000000 | F69: 1.857908847e-11 | G69: 1.239565657e+11 | H69: 302733244.6 | I69: 302.7332446 | J69: 0.3027332446 | K69: 3.13
A70: 0.282709 | B70: 0.282866 | C70: 0.027055 | D70: =1+((B70-A70)/C70) -> 1.005802994 | E70: 37300000000 | F70: =(0.693/E70) -> 1.857908847e-11 | G70: =(2.303/F70) -> 1.239565657e+11 | H70: =(LOG(D70))*(G70) -> 311493431.3 | I70: =(H70/1000000) -> 311.4934313 | J70: =(I70/1000) -> 0.3114934313 | K70: 1.73
A71: 0.281925 | B71: 0.282059 | C71: 0.023023 | D71: 1.005820267 | E71: 37300000000 | F71: 1.857908847e-11 | G71: 1.239565657e+11 | H71: 312417915.8 | I71: 312.4179158 | J71: 0.3124179158 | K71: 3.87
A72: 0.282773 | B72: 0.282868 | C72: 0.016254 | D72: 1.005844715 | E72: 37300000000 | F72: 1.857908847e-11 | G72: 1.239565657e+11 | H72: 313726433.6 | I72: 313.7264336 | J72: 0.3137264336 | K72: 0.89
A73: 0.282794 | B73: 0.282905 | C73: 0.019186 | D73: 1.005785469 | E73: 37300000000 | F73: 1.857908847e-11 | G73: 1.239565657e+11 | H73: 310555413.8 | I73: 310.5554138 | J73: 0.3105554138 | K73: 0.92
A74: 0.28243 | B74: 0.282564 | C74: 0.023057 | D74: 1.005811684 | E74: 37300000000 | F74: 1.857908847e-11 | G74: 1.239565657e+11 | H74: 311958554.6 | I74: 311.9585546 | J74: 0.3119585546 | K74: 2.27
A75: 0.282405 | B75: 0.282539 | C75: 0.023057 | D75: 1.005811684 | E75: 37300000000 | F75: 1.857908847e-11 | G75: 1.239565657e+11 | H75: 311958554.6 | I75: 311.9585546 | J75: 0.3119585546 | K75: 2.35
A76: 0.282798 | B76: 0.283112 | C76: 0.05411 | D76: 1.005802994 | E76: 37300000000 | F76: 1.857908847e-11 | G76: 1.239565657e+11 | H76: 311493431.3 | I76: 311.4934313 | J76: 0.3114934313 | K76: -0.46
A77: 0.283046 | B77: 0.28336 | C77: 0.05411 | D77: 1.005802994 | E77: 37300000000 | F77: 1.857908847e-11 | G77: 1.239565657e+11 | H77: 311493431.3 | I77: 311.4934313 | J77: 0.3114934313 | K77: 0.36
A78: 0.282578 | B78: 0.283001 | C78: 0.072846 | D78: 1.00580677 | E78: 37300000000 | F78: 1.857908847e-11 | G78: 1.239565657e+11 | H78: 311695563.2 | I78: 311.6955632 | J78: 0.3116955632 | K78: -0.38
A79: 0.282596 | B79: 0.282785 | C79: 0.032553 | D79: 1.005805917 | E79: 37300000000 | F79: 1.857908847e-11 | G79: 1.239565657e+11 | H79: 311649857.7 | I79: 311.6498577 | J79: 0.3116498577 | K79: 3.97
A80: 0.283044 | B80: 0.283307 | C80: 0.045178 | D80: 1.005821418 | E80: 37300000000 | F80: 1.857908847e-11 | G80: 1.239565657e+11 | H80: 312479509.8 | I80: 312.4795098 | J80: 0.3124795098 | K80: 0.42
A81: 0.282655 | B81: 0.282911 | C81: 0.044042 | D81: 1.005812633 | E81: 37300000000 | F81: 1.857908847e-11 | G81: 1.239565657e+11 | H81: 312009364 | I81: 312.009364 | J81: 0.312009364 | K81: -3.22

Sheet Older_12
A3: 7.85 | B3: 1.98 | C3: 6.26 | D3: 4.21 | E3: 3.28 | F3: 3.85 | G3: 4.04 | H3: 2.84 | I3: 3.12 | J3: 2.98 | K3: 2.96 | L3: 4.18 | M3: 3.47
A4: 2.49 | B4: 1.98 | C4: 2.13 | D4: 2.66 | E4: 2.56 | F4: 2.58 | G4: 2.76 | H4: 2.58 | I4: 2.66 | J4: 2.73 | K4: 2.69 | L4: 3.31 | M4: 3.25
A5: 2.85 | B5: 1.98 | C5: 2.48 | D5: 2.87 | E5: 2.69 | F5: 2.76 | G5: 2.93 | H5: 2.63 | I5: 2.73 | J5: 2.78 | K5: 2.74 | L5: 3.42 | M5: 3.29

Sheet To_Old_01
U1: 96661
D2: Re/Os | Q2: Maximum | R2: Minimum | U2: 602
A3: Table 7 | B3: TRD | C3: Billion Years | D3: 2.5 | E3: 2.7 | F3: 2.9 | G3: 2.8 | H3: 2.7 | I3: 3 | J3: 2.8 | K3: 2.8 | L3: 2.7 | M3: 2.9 | N3: 2.8 | O3: 3 | P3: 2.5 | Q3: =MAX(D3:P3) -> 3 | R3: =MIN(D3:Q3) -> 2.5 | U3: 202
A4: Page 610 | B4: TMA | C4: Billion Years | D4: 21.8 | E4: 2.9 | F4: 3.8 | G4: 3.3 | H4: 3.1 | I4: 3.1 | J4: 3.3 | K4: 2.9 | L4: 3.4 | M4: 3.1 | N4: 3.1 | O4: 3.7 | P4: 2.8 | Q4: =MAX(D4:P4) -> 21.8 | R4: =MIN(D4:Q4) -> 2.8 | U4: 91
B5: TRD | C5: Billion Years | D5: 2.7 | E5: 2.4 | F5: 2.3 | G5: 1.9 | H5: 1.7 | I5: 2.5 | J5: 2.8 | K5: 2.9 | L5: 2.8 | M5: 2.7 | N5: 2.2 | O5: 2.3 | P5: 2.7 | Q5: =MAX(D5:P5) -> 2.9 | R5: =MIN(D5:Q5) -> 1.7 | U5: 88
B6: TMA | C6: Billion Years | D6: 34.6 | E6: 2.7 | F6: 2.7 | G6: 3 | H6: 0.6 | I6: 1.4 | J6: 4.3 | K6: 14.5 | L6: 3.4 | M6: 3.5 | N6: 12.2 | O6: 3.1 | P6: 3.6 | Q6: =MAX(D6:P6) -> 34.6 | R6: =MIN(D6:Q6) -> 0.6 | U6: 78
U7: 52
A8: Table 8 | B8: Million Years | C8: Million Years | H8: Billion Years | U8: 30.3
A9: Page 612 | B9: Sm-Nd | C9: Lu-Hf | H9: 0.6 | J9: Re/Os | L9: 147Sm/144Nd | N9: 176Hf/177Hf | U9: 25.46
A10: K1 | B10: 25 | C10: -309 | H10: 12.2 | J10: 4 | L10: 23 | N10: 6 | U10: 25
A11: K3 | C11: 844 | H11: 14.5 | U11: 4.85
A12: K13 | C12: -28 | H12: 21.8 | U12: 4.71
A13: K17 | B13: 88 | H13: 34.6 | U13: 2.07
A14: K19 | B14: 202 | C14: 825 | H14: 96.6 | U14: 1.63
A15: K21 | B15: 78 | H15: 30.3 | U15: 1.51
A16: K24 | B16: 52 | H16: 25.46 | U16: 1.5
A17: K27 | B17: -209 | C17: 755 | U17: 1.34
A18: TP5 | B18: 602 | U18: 1.27
A19: LET64 | B19: 96661 | C19: 588 | U19: 1.09
A20: LET38 | B20: -344 | C20: 1995 | U20: 1.06
A21: GP404 | B21: -171 | C21: 1026 | U21: 1.04
A22: M2 | B22: -19 | C22: 659 | U22: 1.03
A23: M9 | B23: 91 | C23: -2377 | U23: 1.03
A24: M13 | B24: -2247 | U24: 0.97
U25: 0.95
U26: 0.83
A27: Statistical | B27: Million Years | C27: Million Years | U27: 0.82
A28: Data | B28: Sm-Nd | C28: Lu-Hf | U28: 0.78
A29: Minimum | B29: -2247 | C29: -2377 | U29: 0.78
A30: Maximum | B30: 96661 | C30: 1995 | U30: -0.17
A31: Difference | B31: =ABS(B29) + B30 -> 98908 | C31: =ABS(C29) + C30 -> 4372 | U31: -0.18
U32: -0.27
U33: -0.29
A34: Table 4 | U34: -0.38
A35: Page 600-601 | D35: 147Sm/144Nd | E35: 143Nd/144Nd | G35: 143Nd/144Ndi | J35: Billion Years | P35: -0.32 | U35: -0.44
A36: K1cpx | B36: 3.5 | C36: 16.8 | D36: 0.12 | E36: 0.512549 | F36: 5e-06 | G36: 0.512476 | H36: 1.7 | I36: 0.87 | J36: 1.09 | M36: 30.3 | P36: -0.17 | U36: -0.73
A37: K1gt | B37: 2 | C37: 2.7 | D37: 0.45 | E37: 0.512602 | F37: 1.2e-05 | G37: 0.512334 | H37: 0.66 | I37: 3.63 | J37: -0.38 | M37: 25.46 | P37: -0.05 | U37: -0.83
A38: K3gt | B38: 1 | C38: 1.5 | D38: 0.4 | E38: 0.512298 | F38: 1e-05 | G38: 0.51206 | H38: 6.59 | I38: 8.98 | J38: -0.73 | M38: 4.85 | P38: 0.03 | U38: -1.49
A39: K13gt | B39: 2 | C39: 4.2 | D39: 0.28 | E39: 0.512327 | F39: 5e-06 | G39: 0.512161 | H39: 6.03 | I39: 7.01 | J39: -2 | M39: 4.71 | P39: 0.2 | U39: -1.69
A40: K17gt | B40: 1.9 | C40: 2.2 | D40: 0.54 | E40: 0.512847 | F40: 1.8e-05 | G40: 0.512529 | H40: 4.12 | I40: 0.18 | J40: -0.17 | M40: 2.07 | P40: 0.53 | U40: -1.76
A41: K17cpx | B41: 4.1 | C41: 19.2 | D41: 0.13 | E41: 0.51261 | F41: 1.2e-05 | G41: 0.512535 | H41: 0.51 | I41: 0.28 | J41: 1.03 | M41: 1.63 | P41: 0.55 | U41: -2
A42: K19cpx | B42: 3.7 | C42: 23.8 | D42: 0.09 | E42: 0.512144 | F42: 4e-06 | G42: 0.512088 | H42: 9.6 | I42: 8.43 | J42: 1.34 | M42: 1.51 | P42: 0.58 | U42: -8.15
A43: K21cpx | B43: 3.7 | C43: 26.4 | D43: 0.09 | E43: 0.511916 | F43: 7e-06 | G43: 0.511866 | H43: 14.05 | I43: 12.77 | J43: 1.51 | M43: 1.5 | P43: 0.61 | U43: -19
A44: K19gt | B44: 0.9 | C44: 1.1 | D44: 0.51 | E44: 0.51269 | F44: 1.1e-05 | G44: 0.512391 | H44: 1.05 | I44: 2.52 | J44: -0.27 | M44: 1.34 | P44: 0.64 | U44: -67.49
A45: K21gt | B45: 1 | C45: 1 | D45: 0.57 | E45: 0.512165 | F45: 2.2e-05 | G45: 0.511827 | H45: 9.19 | I45: 13.53 | J45: -0.44 | M45: 1.27 | P45: 0.67 | U45: -171
A46: K24cpx | B46: 2.3 | C46: 21.5 | D46: 0.07 | E46: 0.512389 | F46: 8e-06 | G46: 0.51235 | H46: 4.82 | I46: 3.32 | J46: 0.83 | M46: 1.09 | P46: 0.8 | U46: -209
A47: K24gt | B47: 1.6 | C47: 3.5 | D47: 0.28 | E47: 0.512462 | F47: 9e-06 | G47: 0.512297 | H47: 3.39 | I47: 4.35 | J47: -1.76 | M47: 1.06 | P47: 0.82 | U47: -344
A48: K27cpx | B48: 1.8 | C48: 16 | D48: 0.07 | E48: 0.512189 | F48: 5e-06 | G48: 0.51215 | H48: 8.72 | I48: 7.23 | J48: 1.04 | M48: 1.04 | P48: 0.86 | U48: -2247
A49: K27gt | B49: 1.3 | C49: 4.4 | D49: 0.18 | E49: 0.512035 | F49: 4e-06 | G49: 0.51193 | H49: 11.72 | I49: 11.52 | J49: 4.85 | M49: 1.03 | P49: 0.87
A50: GP402gt | B50: 0.9 | C50: 3.8 | D50: 0.14 | E50: 0.512543 | F50: 6e-06 | G50: 0.512463 | H50: 1.81 | I50: 1.12 | J50: 1.27 | M50: 1.03 | P50: 0.93
A51: GP402gt | B51: 0.8 | C51: 3 | D51: 0.17 | E51: 0.512591 | F51: 1.1e-05 | G51: 0.512491 | H51: 0.88 | I51: 0.58 | J51: 2.07 | M51: 0.97 | P51: 1
A52: LET2gt | B52: 0.6 | C52: 4.1 | D52: 0.09 | E52: 0.511889 | F52: 1.4e-05 | G52: 0.511834 | H52: 14.57 | I52: 13.39 | J52: 1.63 | M52: 0.95 | P52: 1.04
A53: LET38cpx | B53: 2.6 | C53: 15.7 | D53: 0.1 | E53: 0.512618 | F53: 7e-06 | G53: 0.512559 | H53: 0.35 | I53: 0.75 | J53: 0.78 | M53: 0.83 | P53: 1.41
A54: LET38gt | B54: 1.6 | C54: 4.5 | D54: 0.21 | E54: 0.512369 | F54: 1e-05 | G54: 0.512245 | H54: 5.21 | I54: 5.38 | J54: 30.3 | M54: 0.82 | P54: 1.73
A55: LET64cpx | B55: 3.5 | C55: 13.9 | D55: 0.15 | E55: 0.512589 | F55: 8.6e-05 | G55: 0.512499 | H55: 0.92 | I55: 0.42 | J55: 1.5 | M55: 0.78 | P55: 2.85
A56: LET64gt | B56: 2.1 | C56: 5.5 | D56: 0.23 | E56: 0.512309 | F56: 2.6e-05 | G56: 0.512172 | H56: 6.38 | I56: 6.79 | J56: -8.15 | M56: 0.78 | P56: 3.3
A57: GP404cpx | B57: 3.5 | C57: 15.2 | D57: 0.14 | E57: 0.51272 | F57: 1.1e-05 | G57: 0.512639 | H57: 1.64 | I57: 2.31 | J57: 0.95 | M57: -0.17
A58: GP404gt | B58: 1.4 | C58: 2.4 | D58: 0.35 | E58: 0.512487 | F58: 2.6e-05 | G58: 0.512283 | H58: 2.91 | I58: 4.63 | J58: -0.83 | M58: -0.18
A59: GP404gt | B59: 1 | C59: 2 | D59: 0.29 | E59: 0.512516 | F59: 3.1e-05 | G59: 0.512348 | H59: 2.34 | I59: 3.36 | J59: -1.49 | M59: -0.27
A60: M2cpx | B60: 5.7 | C60: 37.7 | D60: 0.09 | E60: 0.512415 | F60: 5e-06 | G60: 0.512361 | H60: 4.31 | I60: 3.1 | J60: 0.97 | M60: -0.29
A61: M2gt | B61: 2.5 | C61: 5.2 | D61: 0.29 | E61: 0.512391 | F61: 6e-06 | G61: 0.512221 | H61: 4.78 | I61: 5.84 | J61: -1.69 | M61: -0.38
A62: M5cpx | B62: 3.1 | C62: 8.5 | D62: 0.22 | E62: 0.51264 | F62: 5e-06 | G62: 0.512512 | H62: 0.08 | I62: -0.15 | J62: -67.49 | M62: -0.44
A63: M9cpx | B63: 3.7 | C63: 15.2 | D63: 0.15 | E63: 0.512728 | F63: 7e-06 | G63: 0.512641 | H63: 1.78 | I63: 2.35 | J63: 1.06 | M63: -0.73
A64: M9gt | B64: 1.8 | C64: 2.1 | D64: 0.51 | E64: 0.512851 | F64: 8e-06 | G64: 0.512551 | H64: 4.19 | I64: 0.6 | J64: -0.18 | M64: -0.83
A65: M9gt | B65: 1.7 | C65: 2.6 | D65: 0.39 | E65: 0.51287 | F65: 2.5e-05 | G65: 0.512642 | H65: 4.56 | I65: 2.37 | J65: -0.29 | M65: -1.49
A66: M13cpx | B66: 4.2 | C66: 20.4 | D66: 0.12 | E66: 0.512584 | F66: 2.1e-05 | G66: 0.512511 | H66: 1.01 | I66: 0.18 | J66: 1.03 | M66: -1.69
A67: M13gt | B67: 1.8 | C67: 5.3 | D67: 0.2 | E67: 0.510783 | F67: 2.3e-05 | G67: 0.510664 | H67: 36.15 | I67: 36.22 | J67: 25.46 | M67: -1.76
A68: M13gt | B68: 1.3 | C68: 4.4 | D68: 0.17 | E68: 0.511871 | F68: 1.1e-05 | G68: 0.511769 | H68: 14.92 | I68: 14.65 | J68: 4.71 | M68: -2
A69: TP5cpx | B69: 10 | C69: 53.1 | D69: 0.11 | E69: 0.512658 | F69: 1.1e-05 | G69: 0.512591 | H69: 0.43 | I69: 1.38 | J69: 0.82 | M69: -8.15
A70: TP5gt | B70: 1.2 | C70: 7.7 | D70: 0.09 | E70: 0.512582 | F70: 9e-06 | G70: 0.512526 | H70: 1.05 | I70: 0.12 | J70: 0.78 | M70: -67.49
A72: Table 4
A73: Page 600-601 | D73: 176Hf/177Hf | E73: 176Hf/177Hf | G73: 176Hf/177Hfi | J73: Billion Years
A74: K1cpx | B74: 0.0038 | C74: 2.303 | D74: 0.00023 | E74: 0.28268 | F74: 1.3e-05 | G74: 0.28268 | H74: 3.3 | I74: 1.2 | J74: 0.82 | K74: 3.4
A75: K1gt | B75: 0.0686 | C75: 1.744 | D75: 0.00558 | E75: 0.282648 | F75: 1.6e-05 | G75: 0.282638 | H75: 4.4 | I75: 2.7 | J75: 1 | K75: 1.27
A76: K3cpx | B76: 0.0101 | C76: 1.357 | D76: 0.00106 | E76: 0.283333 | F76: 1.5e-05 | G76: 0.283331 | H76: 19.8 | I76: 21.8 | J76: -0.05 | K76: 18.52
A77: K3gt | B77: 0.4086 | C77: 0.1266 | D77: 0.45878 | E77: 0.29089 | F77: 7.8e-05 | G77: 0.290092 | H77: 287 | I77: 261 | J77: 0.93 | K77: 269
A78: K13cpx | B78: 0.0018 | C78: 0.5338 | D78: 0.00048 | E78: 0.282903 | F78: 3.5e-05 | G78: 0.282902 | H78: 4.6 | I78: 6.6 | J78: 0.53 | K78: 3.35
A79: K13gt | B79: 0.0891 | C79: 0.6726 | D79: 0.0188 | E79: 0.282893 | F79: 4e-05 | G79: 0.28286 | H79: 4.3 | I79: 5.2 | J79: 1.04 | K79: 10.98
A80: K19cpx | B80: 0.0094 | C80: 1.609 | D80: 0.00083 | E80: 0.282801 | F80: 2.1e-05 | G80: 0.2828 | H80: 1 | I80: 3 | J80: 0.67 | K80: 10.68
A81: K19gt | B81: 0.2868 | C81: 0.2157 | D81: 0.18883 | E81: 0.285833 | F81: 3.4e-05 | G81: 0.285505 | H81: 108 | I81: 98.7 | J81: 0.87 | K81: 98.68
A82: K27cpx | B82: 0.0013 | C82: 0.2205 | D82: 0.00084 | E82: 0.28315 | F82: 3.2e-05 | G82: 0.283149 | H82: 13.4 | I82: 15.4 | J82: 0.2 | K82: 21.46
A83: K27gt | B83: 0.0914 | C83: 0.276 | D83: 0.04701 | E83: 0.283831 | F83: 1.3e-05 | G83: 0.283749 | H83: 37.5 | I83: 36.6 | J83: 3.3 | K83: 48.29
A84: GP402gt | B84: 0.2 | C84: 0.1368 | D84: 0.20789 | E84: 0.292841 | F84: 9.5e-05 | G84: 0.29248 | H84: 356 | I84: 345.4 | J84: 2.85 | K84: 344
A85: LET38cpx | B85: 0.0018 | C85: 0.825 | D85: 0.00031 | E85: 0.282866 | F85: 1.5e-05 | G85: 0.282865 | H85: 3.3 | I85: 5.3 | J85: 0.58 | K85: 1.83
A86: LET38gt | B86: 0.0408 | C86: 0.4327 | D86: 0.01339 | E86: 0.283382 | F86: 1.8e-05 | G86: 0.283359 | H86: 21.6 | I86: 22.8 | J86: -0.17 | K86: 27.25
A87: LET64cpx | B87: 0.0228 | C87: 3.719 | D87: 0.00087 | E87: 0.282663 | F87: 2.3e-05 | G87: 0.282661 | H87: 3.9 | I87: 1.9 | J87: 0.86 | K87: 3.86
A88: LET64gt | B88: 0.0406 | C88: 0.2384 | D88: 0.02418 | E88: 0.283392 | F88: 5.3e-05 | G88: 0.28335 | H88: 21.9 | I88: 22.5 | J88: -0.32 | K88: 28.77
A89: GP404cpx-b | B89: 0.0079 | C89: 1.962 | D89: 0.00057 | E89: 0.28282 | F89: 1.9e-05 | G89: 0.282819 | H89: 1.7 | I89: 3.7 | J89: 0.64 | K89: 0.42
A90: GP404gt | B90: 0.0848 | C90: 0.503 | D90: 0.02393 | E90: 0.28329 | F90: 4.5e-05 | G90: 0.283248 | H90: 18.3 | I90: 18.9 | J90: 0.03 | K90: 20.73
A91: M2cpx | B91: 0.004 | C91: 2.112 | D91: 0.00027 | E91: 0.282839 | F91: 1.5e-05 | G91: 0.282839 | H91: 2.4 | I91: 4.4 | J91: 0.61 | K91: 5.13
A92: M2gt | B92: 0.0779 | C92: 0.5142 | D92: 0.02152 | E92: 0.283113 | F92: 2.3e-05 | G92: 0.283075 | H92: 12 | I92: 12.8 | J92: 0.55 | K92: 17.05
A93: M5cpx | B93: 2.178 | D93: 0.00652 | E93: 0.282404 | F93: 6e-06 | G93: 0.282393 | H93: 13 | I93: 11.4 | J93: 1.41 | K93: 14.46
A94: M9cpx | B94: 0.0075 | C94: 3.534 | D94: 0.0003 | E94: 0.282698 | F94: 1.6e-05 | G94: 0.282698 | H94: 2.6 | I94: 0.6 | J94: 0.8 | K94: 3.88
A95: M9gt | B95: 0.105 | C95: 1.605 | D95: 0.00929 | E95: 0.282293 | F95: 1.5e-05 | G95: 0.282277 | H95: 16.9 | I95: 15.5 | J95: 1.73 | K95: 19.54
A101: Table 4
A102: Page 600-601
A103: Initial | B103: Today | C103: Today | D103: The Ratio | E103: Half | F103: Decay | G103: 2.303/Delta | H103: Age | I103: Age | J103: Age
A104: 176Hf/177Hf | B104: 176Hf/177Hf | C104: 176Lu/177Hf | D104: Plus One | E104: Life | F104: Constant | G104: Constant | H104: Years | I104: Million Years | J104: Billion Years
A105: 0.28268 | B105: 0.28268 | C105: 0.00023 | D105: =1+((B105-A105)/C105) -> 1 | E105: 37300000000 | F105: =(0.693/E105) -> 1.857908847e-11 | G105: =(2.303/F105) -> 1.239565657e+11 | H105: =(LOG(D105))*(G105) -> 0
A106: 0.282638 | B106: 0.282648 | C106: 0.00558 | D106: =1+((B106-A106)/C106) -> 1.001792115 | E106: 37300000000 | F106: =(0.693/E106) -> 1.857908847e-11 | G106: =(2.303/F106) -> 1.239565657e+11 | H106: =(LOG(D106))*(G106) -> 96389734.72 | I106: =(H106/1000000) -> 96.38973472 | J106: =(I106/1000) -> 0.09638973472
A107: 0.283331 | B107: 0.283333 | C107: 0.00106 | D107: 1.001886792 | E107: 37300000000 | F107: 1.857908847e-11 | G107: 1.239565657e+11 | H107: 101477226 | I107: 101.477226 | J107: 0.101477226
A108: 0.290092 | B108: 0.29089 | C108: 0.45878 | D108: 1.001739396 | E108: 37300000000 | F108: 1.857908847e-11 | G108: 1.239565657e+11 | H108: 93556685.9 | I108: 93.5566859 | J108: 0.0935566859
A109: 0.282902 | B109: 0.282903 | C109: 0.00048 | D109: 1.002083333 | E109: 37300000000 | F109: 1.857908847e-11 | G109: 1.239565657e+11 | H109: 112036778.1 | I109: 112.0367781 | J109: 0.1120367781
A110: 0.28286 | B110: 0.282893 | C110: 0.0188 | D110: 1.001755319 | E110: 37300000000 | F110: 1.857908847e-11 | G110: 1.239565657e+11 | H110: 94412403.29 | I110: 94.41240329 | J110: 0.09441240329
A111: 0.2828 | B111: 0.282801 | C111: 0.00083 | D111: 1.001204819 | E111: 37300000000 | F111: 1.857908847e-11 | G111: 1.239565657e+11 | H111: 64820781.42 | I111: 64.82078142 | J111: 0.06482078142
A112: 0.285505 | B112: 0.285833 | C112: 0.18883 | D112: 1.001737012 | E112: 37300000000 | F112: 1.857908847e-11 | G112: 1.239565657e+11 | H112: 93428587.36 | I112: 93.42858736 | J112: 0.09342858736
A113: 0.283149 | B113: 0.28315 | C113: 0.00084 | D113: 1.001190476 | E113: 37300000000 | F113: 1.857908847e-11 | G113: 1.239565657e+11 | H113: 64049564.32 | I113: 64.04956432 | J113: 0.06404956432
A114: 0.283749 | B114: 0.283831 | C114: 0.04701 | D114: 1.00174431 | E114: 37300000000 | F114: 1.857908847e-11 | G114: 1.239565657e+11 | H114: 93820760.86 | I114: 93.82076086 | J114: 0.09382076086
A115: 0.29248 | B115: 0.292841 | C115: 0.20789 | D115: 1.001736495 | E115: 37300000000 | F115: 1.857908847e-11 | G115: 1.239565657e+11 | H115: 93400810.85 | I115: 93.40081085 | J115: 0.09340081085
A116: 0.282865 | B116: 0.282866 | C116: 0.00031 | D116: 1.003225806 | E116: 37300000000 | F116: 1.857908847e-11 | G116: 1.239565657e+11 | H116: 173377452.5 | I116: 173.3774525 | J116: 0.1733774525
A117: 0.283359 | B117: 0.283382 | C117: 0.01339 | D117: 1.0017177 | E117: 37300000000 | F117: 1.857908847e-11 | G117: 1.239565657e+11 | H117: 92390725.7 | I117: 92.3907257 | J117: 0.0923907257
A118: 0.282661 | B118: 0.282663 | C118: 0.00087 | D118: 1.002298851 | E118: 37300000000 | F118: 1.857908847e-11 | G118: 1.239565657e+11 | H118: 123613492.8 | I118: 123.6134928 | J118: 0.1236134928
A119: 0.28335 | B119: 0.283392 | C119: 0.02418 | D119: 1.001736973 | E119: 37300000000 | F119: 1.857908847e-11 | G119: 1.239565657e+11 | H119: 93426468.77 | I119: 93.42646877 | J119: 0.09342646877
A120: 0.282819 | B120: 0.28282 | C120: 0.00057 | D120: 1.001754386 | E120: 37300000000 | F120: 1.857908847e-11 | G120: 1.239565657e+11 | H120: 94362254.59 | I120: 94.36225459 | J120: 0.09436225459
A121: 0.283248 | B121: 0.28329 | C121: 0.02393 | D121: 1.001755119 | E121: 37300000000 | F121: 1.857908847e-11 | G121: 1.239565657e+11 | H121: 94401652.65 | I121: 94.40165265 | J121: 0.09440165265
A122: 0.282839 | B122: 0.282839 | C122: 0.00027 | D122: 1 | E122: 37300000000 | F122: 1.857908847e-11 | G122: 1.239565657e+11 | H122: 0
A123: 0.283075 | B123: 0.283113 | C123: 0.02152 | D123: 1.001765799 | E123: 37300000000 | F123: 1.857908847e-11 | G123: 1.239565657e+11 | H123: 94975594.23 | I123: 94.97559423 | J123: 0.09497559423
A124: 0.282393 | B124: 0.282404 | C124: 0.00652 | D124: 1.001687117 | E124: 37300000000 | F124: 1.857908847e-11 | G124: 1.239565657e+11 | H124: 90747117.81 | I124: 90.74711781 | J124: 0.09074711781
A125: 0.282698 | B125: 0.282698 | C125: 0.0003 | D125: 1 | E125: 37300000000 | F125: 1.857908847e-11 | G125: 1.239565657e+11 | H125: 0
A126: 0.282277 | B126: 0.282293 | C126: 0.00929 | D126: 1.001722282 | E126: 37300000000 | F126: 1.857908847e-11 | G126: 1.239565657e+11 | H126: 92636981.28 | I126: 92.63698128 | J126: 0.09263698128
H127: Maximum | I127: =MAX(I105:I126) -> 173.3774525
H128: Minimum | I128: =MIN(I105:I127) -> 64.04956432
H129: Difference | I129: =(I127-I128) -> 109.3278882
A130: Table 4
A131: Page 600-601
A132: Initial | B132: Today | C132: Today | D132: The Ratio | E132: Half | F132: Decay | G132: 2.303/Delta | H132: Age | I132: Age | J132: Age
A133: 143Nd/144Nd | B133: 143Nd/144Nd | C133: 147Sm/144Nd | D133: Plus One | E133: Life | F133: Constant | G133: Constant | H133: Years | I133: Million Years | J133: Billion Years
A134: 0.512476 | B134: 0.512549 | C134: 0.12 | D134: =1+((B134-A134)/C134) -> 1.000608333 | E134: 106000000000 | F134: =(0.693/E134) -> 6.537735849e-12 | G134: =(2.303/F134) -> 3.522626263e+11 | H134: =(LOG(D134))*(G134) -> 93038013.62 | I134: =(H134/1000000) -> 93.03801362 | J134: =(I134/1000) -> 0.09303801362
A135: 0.512334 | B135: 0.512602 | C135: 0.45 | D135: =1+((B135-A135)/C135) -> 1.000595556 | E135: 106000000000 | F135: =(0.693/E135) -> 6.537735849e-12 | G135: =(2.303/F135) -> 3.522626263e+11 | H135: =(LOG(D135))*(G135) -> 91084372.14 | I135: =(H135/1000000) -> 91.08437214 | J135: =(I135/1000) -> 0.09108437214
A136: 0.51206 | B136: 0.512298 | C136: 0.4 | D136: 1.000595 | E136: 106000000000 | F136: 6.537735849e-12 | G136: 3.522626263e+11 | H136: 90999430.64 | I136: 90.99943064 | J136: 0.09099943064
A137: 0.512161 | B137: 0.512327 | C137: 0.28 | D137: 1.000592857 | E137: 106000000000 | F137: 6.537735849e-12 | G137: 3.522626263e+11 | H137: 90671798.7 | I137: 90.6717987 | J137: 0.0906717987
A138: 0.512529 | B138: 0.512847 | C138: 0.54 | D138: 1.000588889 | E138: 106000000000 | F138: 6.537735849e-12 | G138: 3.522626263e+11 | H138: 90065071.03 | I138: 90.06507103 | J138: 0.09006507103
A139: 0.512535 | B139: 0.51261 | C139: 0.13 | D139: 1.000576923 | E139: 106000000000 | F139: 6.537735849e-12 | G139: 3.522626263e+11 | H139: 88235539.18 | I139: 88.23553918 | J139: 0.08823553918
A140: 0.512088 | B140: 0.512144 | C140: 0.09 | D140: 1.000622222 | E140: 106000000000 | F140: 6.537735849e-12 | G140: 3.522626263e+11 | H140: 95161508.68 | I140: 95.16150868 | J140: 0.09516150868
A141: 0.511866 | B141: 0.511916 | C141: 0.09 | D141: 1.000555556 | E141: 106000000000 | F141: 6.537735849e-12 | G141: 3.522626263e+11 | H141: 84968463.59 | I141: 84.96846359 | J141: 0.08496846359
A142: 0.512391 | B142: 0.51269 | C142: 0.51 | D142: 1.000586275 | E142: 106000000000 | F142: 6.537735849e-12 | G142: 3.522626263e+11 | H142: 89665343.25 | I142: 89.66534325 | J142: 0.08966534325
A143: 0.511827 | B143: 0.512165 | C143: 0.57 | D143: 1.000592982 | E143: 106000000000 | F143: 6.537735849e-12 | G143: 3.522626263e+11 | H143: 90690958.48 | I143: 90.69095848 | J143: 0.09069095848
A144: 0.51235 | B144: 0.512389 | C144: 0.07 | D144: 1.000557143 | E144: 106000000000 | F144: 6.537735849e-12 | G144: 3.522626263e+11 | H144: 85211163.04 | I144: 85.21116304 | J144: 0.08521116304
A145: 0.512297 | B145: 0.512462 | C145: 0.28 | D145: 1.000589286 | E145: 106000000000 | F145: 6.537735849e-12 | G145: 3.522626263e+11 | H145: 90125743.9 | I145: 90.1257439 | J145: 0.0901257439
A146: 0.51215 | B146: 0.512189 | C146: 0.07 | D146: 1.000557143 | E146: 106000000000 | F146: 6.537735849e-12 | G146: 3.522626263e+11 | H146: 85211163.04 | I146: 85.21116304 | J146: 0.08521116304
A147: 0.51193 | B147: 0.512035 | C147: 0.18 | D147: 1.000583333 | E147: 106000000000 | F147: 6.537735849e-12 | G147: 3.522626263e+11 | H147: 89215648.25 | I147: 89.21564825 | J147: 0.08921564825
A148: 0.512463 | B148: 0.512543 | C148: 0.14 | D148: 1.000571429 | E148: 106000000000 | F148: 6.537735849e-12 | G148: 3.522626263e+11 | H148: 87395440.69 | I148: 87.39544069 | J148: 0.08739544069
A149: 0.512491 | B149: 0.512591 | C149: 0.17 | D149: 1.000588235 | E149: 106000000000 | F149: 6.537735849e-12 | G149: 3.522626263e+11 | H149: 89965139.18 | I149: 89.96513918 | J149: 0.08996513918
A150: 0.511834 | B150: 0.511889 | C150: 0.09 | D150: 1.000611111 | E150: 106000000000 | F150: 6.537735849e-12 | G150: 3.522626263e+11 | H150: 93462714.99 | I150: 93.46271499 | J150: 0.09346271499
A151: 0.512559 | B151: 0.512618 | C151: 0.1 | D151: 1.00059 | E151: 106000000000 | F151: 6.537735849e-12 | G151: 3.522626263e+11 | H151: 90234955.02 | I151: 90.23495502 | J151: 0.09023495502
A152: 0.512245 | B152: 0.512369 | C152: 0.21 | D152: 1.000590476 | E152: 106000000000 | F152: 6.537735849e-12 | G152: 3.522626263e+11 | H152: 90307762.38 | I152: 90.30776238 | J152: 0.09030776238
A153: 0.512499 | B153: 0.512589 | C153: 0.15 | D153: 1.0006 | E153: 106000000000 | F153: 6.537735849e-12 | G153: 3.522626263e+11 | H153: 91763902.44 | I153: 91.76390244 | J153: 0.09176390244
A154: 0.512172 | B154: 0.512309 | C154: 0.23 | D154: 1.000595652 | E154: 106000000000 | F154: 6.537735849e-12 | G154: 3.522626263e+11 | H154: 91099144.57 | I154: 91.09914457 | J154: 0.09109914457
A155: 0.512639 | B155: 0.51272 | C155: 0.14 | D155: 1.000578571 | E155: 106000000000 | F155: 6.537735849e-12 | G155: 3.522626263e+11 | H155: 88487567.82 | I155: 88.48756782 | J155: 0.08848756782
A156: 0.512283 | B156: 0.512487 | C156: 0.35 | D156: 1.000582857 | E156: 106000000000 | F156: 6.537735849e-12 | G156: 3.522626263e+11 | H156: 89142840.36 | I156: 89.14284036 | J156: 0.08914284036
A157: 0.512348 | B157: 0.512516 | C157: 0.29 | D157: 1.00057931 | E157: 106000000000 | F157: 6.537735849e-12 | G157: 3.522626263e+11 | H157: 88600546.05 | I157: 88.60054605 | J157: 0.08860054605
A158: 0.512361 | B158: 0.512415 | C158: 0.09 | D158: 1.0006 | E158: 106000000000 | F158: 6.537735849e-12 | G158: 3.522626263e+11 | H158: 91763902.44 | I158: 91.76390244 | J158: 0.09176390244
A159: 0.512221 | B159: 0.512391 | C159: 0.29 | D159: 1.000586207 | E159: 106000000000 | F159: 6.537735849e-12 | G159: 3.522626263e+11 | H159: 89655005.45 | I159: 89.65500545 | J159: 0.08965500545
A160: 0.512512 | B160: 0.51264 | C160: 0.22 | D160: 1.000581818 | E160: 106000000000 | F160: 6.537735849e-12 | G160: 3.522626263e+11 | H160: 88983986.67 | I160: 88.98398667 | J160: 0.08898398667
A161: 0.512641 | B161: 0.512728 | C161: 0.15 | D161: 1.00058 | E161: 106000000000 | F161: 6.537735849e-12 | G161: 3.522626263e+11 | H161: 88705992.31 | I161: 88.70599231 | J161: 0.08870599231
A162: 0.512551 | B162: 0.512851 | C162: 0.51 | D162: 1.000588235 | E162: 106000000000 | F162: 6.537735849e-12 | G162: 3.522626263e+11 | H162: 89965139.18 | I162: 89.96513918 | J162: 0.08996513918
A163: 0.512642 | B163: 0.51287 | C163: 0.39 | D163: 1.000584615 | E163: 106000000000 | F163: 6.537735849e-12 | G163: 3.522626263e+11 | H163: 89411669.31 | I163: 89.41166931 | J163: 0.08941166931
A164: 0.512511 | B164: 0.512584 | C164: 0.12 | D164: 1.000608333 | E164: 106000000000 | F164: 6.537735849e-12 | G164: 3.522626263e+11 | H164: 93038013.62 | I164: 93.03801362 | J164: 0.09303801362
A165: 0.510664 | B165: 0.510783 | C165: 0.2 | D165: 1.000595 | E165: 106000000000 | F165: 6.537735849e-12 | G165: 3.522626263e+11 | H165: 90999430.64 | I165: 90.99943064 | J165: 0.09099943064
A166: 0.511769 | B166: 0.511871 | C166: 0.17 | D166: 1.0006 | E166: 106000000000 | F166: 6.537735849e-12 | G166: 3.522626263e+11 | H166: 91763902.44 | I166: 91.76390244 | J166: 0.09176390244
A167: 0.512591 | B167: 0.512658 | C167: 0.11 | D167: 1.000609091 | E167: 106000000000 | F167: 6.537735849e-12 | G167: 3.522626263e+11 | H167: 93153841.39 | I167: 93.15384139 | J167: 0.09315384139
A168: 0.512526 | B168: 0.512582 | C168: 0.09 | D168: 1.000622222 | E168: 106000000000 | F168: 6.537735849e-12 | G168: 3.522626263e+11 | H168: 95161508.68 | I168: 95.16150868 | J168: 0.09516150868
H169: Maximum | I169: =MAX(I134:I168) -> 95.16150868
H170: Minimum | I170: =MIN(I134:I169) -> 84.96846359
H171: Difference | I171: =(I169-I170) -> 10.19304508

Sheet To_Old_02
A1: Re/Os | B1: Re/Os
A2: 1.6 | B2: -
A3: 2.2 | B3: 0.1
A4: 3 | B4: 1.2
A5: 2.7 | B5: 1.7
A6: 2 | B6: 2.2
A7: 2.6 | B7: 2.3
A8: 1.8 | B8: 2.3
A9: 2.8 | B9: 2.6
A10: 2.7 | B10: 2.7
A11: 1.2 | B11: 2.8
A12: 2.2 | B12: 2.8
A13: 2.8 | B13: 2.9
A14: 0.9 | B14: 3.2
A15: 3.1 | B15: 3.5
A16: 2.6 | B16: 3.5
A17: 3.3 | B17: 3.8
A18: 2.5 | B18: 4.1
A19: 2 | B19: 4.3
A20: 2.1 | B20: 8.5
A21: 2.4 | B21: 10.2
A22: 0.5 | B22: 11.1
A23: 3.5 | B23: 15.6
A24: 1.7 | B24: -
A25: 2.1 | B25: -

Sheet To_Old_03
A1: Table 2 | C1: Mt Gambier | D1: Page 654 | G1: Re/Os | J1: Billion Years | K1: Billion Years | O1: Table 2 | Q1: Table 3
A2: Billion Years | D2: Billion Years | J2: -17.4 | K2: 4.35 | O2: 34 | Q2: 16
A3: -7.06 | B3: 0.83 | D3: -17.4 | E3: 6.5 | J3: -9.5 | K3: 5.2 | O3: 8.8 | Q3: 7.4
A4: -0.18 | B4: 0.42 | D4: -9.5 | E4: 8.1 | J4: -7.06 | K4: 8.3 | O4: 8.3 | Q4: 6.7
A5: -0.16 | B5: 0.12 | D5: -2.35 | E5: 0.22 | J5: -2.35 | K5: 8.8 | O5: 5.2 | Q5: 3.93
A6: 0.01 | B6: 0.49 | D6: -0.3 | E6: 0.46 | J6: -0.3 | K6: 34 | O6: 4.35 | Q6: 3.11
A7: 0.03 | B7: 0.01 | D7: -0.2 | E7: 0.02 | O7: 3.63 | Q7: 2.62
A8: 0.21 | B8: 0.79 | D8: -0.1 | E8: 0.01 | O8: 3.24 | Q8: 2.39
A9: 0.7 | B9: 0.03 | D9: 0.05 | E9: 0.62 | O9: 2.75 | Q9: 2.22
A10: 0.74 | B10: 0.01 | D10: 0.79 | E10: 0.15 | O10: 2.45 | Q10: 2.19
A11: 0.79 | B11: 0.48 | D11: 0.85 | E11: 0.11 | O11: 2.16 | Q11: 2.01
A12: 0.91 | B12: 0.03 | D12: 1.16 | E12: 0.37 | O12: 2.13 | Q12: 1.93
A13: 1.08 | B13: 0.03 | D13: 1.71 | E13: 0.37 | O13: 1.74 | Q13: 1.92
A14: 1.2 | B14: 0.42 | D14: 2.45 | E14: 0.71 | O14: 1.71 | Q14: 1.77
A15: 1.3 | B15: 0.01 | D15: 3.24 | E15: 0.52 | O15: 1.64 | Q15: 1.68
A16: 1.33 | B16: 0.03 | D16: 3.63 | E16: 3.8 | O16: 1.33 | Q16: 1.57
A17: 1.64 | B17: 0.1 | D17: 4.35 | E17: 2.1 | O17: 1.3 | Q17: 1.42
A18: 1.74 | B18: 0.19 | D18: 5.2 | E18: 1.1 | O18: 1.2 | Q18: 1.42
A19: 2.13 | B19: 0.37 | D19: 8.3 | E19: 1.7 | O19: 1.16 | Q19: 1.2
A20: 2.16 | B20: 0.32 | D20: 8.8 | E20: 1 | O20: 1.08 | Q20: 1.14
A21: 2.75 | B21: 0.59 | D21: 34 | E21: 31 | O21: 0.91 | Q21: 0.97
O22: 0.85 | Q22: 0.92
O23: 0.79 | Q23: 0.79
A24: Table 3 | C24: France | D24: Page 655 | G24: Re/Os | J24: Billion Years | K24: Billion Years | O24: 0.79 | Q24: 0.63
A25: Billion Years | D25: Billion Years | J25: -32 | K25: 3.11 | O25: 0.74 | Q25: 0.59
A26: 0.34 | B26: 0.84 | D26: 0.59 | E26: 14 | J26: -2.08 | K26: 3.93 | O26: 0.7 | Q26: 0.56
A27: 0.52 | B27: 0.36 | D27: 0.56 | E27: 0.33 | J27: -1.79 | K27: 6.7 | O27: 0.21 | Q27: 0.52
A28: -1.79 | B28: 0.21 | D28: 6.7 | E28: 0.36 | J28: -1.43 | K28: 7.4 | O28: 0.05 | Q28: 0.34
A29: -1.12 | B29: 0.2 | D29: -32 | E29: 0.61 | J29: -1.42 | K29: 16 | O29: 0.03 | Q29: 0.15
A30: 1.57 | B30: 0.23 | D30: 2.01 | E30: 0.77 | O30: 0.01 | Q30: 0.12
A31: 0.97 | B31: 0.51 | D31: 2.39 | E31: 0.77 | O31: -0.1 | Q31: 0.06
A32: 1.92 | B32: 0.06 | D32: 2.22 | E32: 0.05 | O32: -0.16 | Q32: 0.05
A33: 0.05 | B33: 0.63 | D33: 0.12 | E33: 3.24 | O33: -0.18 | Q33: -0.03
A34: -1.2 | B34: 0.63 | D34: 1.2 | E34: 0.37 | O34: -0.2 | Q34: -0.05
A35: -0.92 | B35: 0.03 | D35: 3.93 | E35: 0.19 | O35: -0.3 | Q35: -0.68
A36: -0.68 | B36: 0.4 | D36: -0.83 | E36: 0.92 | O36: -2.35 | Q36: -0.68
A37: -1 | B37: 0.15 | D37: -1.17 | E37: 0.96 | O37: -7.06 | Q37: -0.83
A38: 0.92 | B38: 0.54 | D38: 1.93 | E38: 1.7 | O38: -9.5 | Q38: -0.83
A39: -0.68 | B39: 0.18 | D39: -0.83 | E39: 0.81 | O39: -17.4 | Q39: -0.92
A40: -1.36 | B40: 0.74 | D40: -2.08 | E40: 0.22 | Q40: -1
A41: 1.77 | B41: 0.8 | D41: 7.4 | E41: 2.25 | Q41: -1.12
A42: 0.06 | B42: 0.39 | D42: 0.15 | E42: 0.85 | Q42: -1.17
A43: 1.14 | B43: 0.17 | D43: 3.11 | E43: 0.91 | Q43: -1.2
A44: 1.42 | B44: 0.36 | D44: 2.62 | E44: 0.47 | Q44: -1.36
A45: -0.03 | B45: 0.25 | D45: -0.05 | E45: 0.97 | Q45: -1.42
A46: 0.79 | B46: 0.08 | D46: 2.19 | E46: 0.47 | Q46: -1.43
A47: 0.63 | B47: 0.59 | D47: 1.42 | E47: 3.9 | Q47: -1.79
A48: -1.42 | B48: 0.47 | D48: -1.43 | E48: 3.2 | Q48: -2.08
A49: 1.68 | B49: 0.68 | D49: 16 | E49: 9 | Q49: -32

Sheet To_Old_04
A1: Billion Years
A2: Future Age
A3: Future Age
A4: Future Age
A5: Future Age
A6: 5.65
A7: 12.6
E10: Age
A11: Table 2 | B11: 206Pb/204Pb | C11: 207Pb/204Pb | D11: 207Pb/206Pb | E11: 207Pb/206Pb
A12: 1008-Cpx | B12: 18.08 | C12: 15.39 | D12: =(C12/B12) -> 0.8512168142 | E12: =[1]!AgePb76(D12) -> 5009.944847
A13: 1012-Cpx | B13: 17.31 | C13: 15.07 | D13: =(C13/B13) -> 0.8705950318 | E13: =[1]!AgePb76(D13) -> 5041.85736
A14: 1033-Cpx | B14: 21.02 | C14: 16.18 | D14: 0.7697431018 | E14: =[1]!AgePb76(D14) -> 4866.756436
A15: 4254-Gt | B15: 23.77 | C15: 16.29 | D15: 0.6853176273 | E15: =[1]!AgePb76(D15) -> 4700.236049
A16: 5267-Cpx | B16: 17.51 | C16: 15.49 | D16: 0.8846373501 | E16: =[1]!AgePb76(D16) -> 5064.515012
D17: Maximum | E17: =MAX(E12:E16) -> 5064.515012
D18: Minimum | E18: =MIN(E12:E17) -> 4700.236049
D19: Difference | E19: =(E17-E18) -> 364.2789623
A22: Table 4 | B22: Nd, Age | C22: Osmium Age | D22: Osmium Age
A23: 1007 WR | B23: 0.66 | C23: Negative | D23: 2.74
A24: 1007 Cpx | B24: 1.08
A25: 1008 WR | B25: 0.69 | C25: 2.79 | D25: 2.5
A26: 1008 Cpx | B26: 1.42
A27: 1012 WR | B27: 0.7 | C27: Negative | D27: 0.55
A28: 1012 Cpx | B28: 1.13
A29: 1033 WR | B29: 1.33 | C29: 2.54 | D29: 1.79
A30: 1033 Cpx | B30: 1.27
A31: 4254 WR | B31: 0.59 | C31: Negative | D31: 1.89
A32: 4254 Gt | B32: 1.4
A33: 4258 WR | B33: 0.85 | C33: 0.11 | D33: 0.04
A34: 1566 WR | C34: 0.97 | D34: 0.17
A35: 1596 SR | C35: 5.65 | D35: 2.89
A36: 1924 WR | C36: 1.48 | D36: 1.1
A37: 1926 WR | C37: 3.89 | D37: 1.54
A38: 5267 WR | B38: 1.53 | C38: 2.52 | D38: 1.7
A39: 5267 Cpx | B39: 1.4
A40: 5267 Gt | B40: 0.57
A41: 5268 WR. | B41: 1.63 | C41: 2.54 | D41: 1.98
A42: Letseng-la-Terae | B42: 0.52 | C42: 0.09 | D42: Negative
A43: Bellsbank | B43: 1.07 | C43: 12.6 | D43: 2.46
A44: Maximum | B44: =MAX(B23:B43) -> 1.63 | C44: =MAX(C23:C43) -> 12.6 | D44: =MAX(D23:D43) -> 2.89
A45: Minimum | B45: =MIN(B23:B43) -> 0.52 | C45: =MIN(C23:C43) -> 0.09 | D45: =MIN(D23:D43) -> 0.04
A46: Difference | B46: =(B44-B45) -> 1.11 | C46: =(C44-C45) -> 12.51 | D46: =(D44-D45) -> 2.85
A49: Table 2
A50: Sample | B50: Initial | C50: Today | D50: Today | E50: The Ratio | F50: Half | G50: Decay | H50: 2.303/Delta | I50: Age | J50: Age | K50: Age
A51: Number | B51: 87Sr/86Sr | C51: 87Sr/86Sr | D51: 87Rb/86Sr | E51: Plus One | F51: Life | G51: Constant | H51: Constant | I51: Years | J51: Million Years | K51: Billion Years
A52: 1007-WR | B52: 0.70516 | C52: 0.705754 | D52: 0.485 | E52: =1+((C52-B52)/D52) -> 1.001224742 | F52: 48800000000 | G52: =(0.693/F52) -> 1.420081967e-11 | H52: =(2.303/G52) -> 1.621737374e+11 | I52: =(LOG(E52))*(H52) -> 86207237.67 | J52: =(I52/1000000) -> 86.20723767 | K52: =(J52/1000) -> 0.08620723767
A53: 1007-Cpx | B53: 0.70776 | C53: 0.707893 | D53: 0.11 | E53: =1+((C53-B53)/D53) -> 1.001209091 | F53: 48800000000 | G53: 1.420081967e-11 | H53: =(2.303/G53) -> 1.621737374e+11 | I53: =(LOG(E53))*(H53) -> 85106234.14 | J53: =(I53/1000000) -> 85.10623414 | K53: =(J53/1000) -> 0.08510623414
A54: 1008-WR | B54: 0.7061 | C54: 0.706904 | D54: 0.662 | E54: 1.001214502 | F54: 48800000000 | G54: 1.420081967e-11 | H54: 1.621737374e+11 | I54: 85486847.85 | J54: 85.48684785 | K54: 0.08548684785
A55: 1008-Cpx | B55: 0.70585 | C55: 0.705933 | D55: 0.07 | E55: 1.001185714 | F55: 48800000000 | G55: 1.420081967e-11 | H55: 1.621737374e+11 | I55: 83461760.56 | J55: 83.46176056 | K55: 0.08346176056
A56: 1012-WR | B56: 0.70511 | C56: 0.705522 | D56: 0.334 | E56: 1.001233533 | F56: 48800000000 | G56: 1.420081967e-11 | H56: 1.621737374e+11 | I56: 86825614.4 | J56: 86.8256144 | K56: 0.0868256144
A57: 1012-Cpx | B57: 0.70317 | C57: 0.703196 | D57: 0.0214 | E57: 1.001214953 | F57: 48800000000 | G57: 1.420081967e-11 | H57: 1.621737374e+11 | I57: 85518627.26 | J57: 85.51862726 | K57: 0.08551862726
A58: 1033-WR | B58: 0.70396 | C58: 0.704434 | D58: 0.39 | E58: 1.001215385 | F58: 48800000000 | G58: 1.420081967e-11 | H58: 1.621737374e+11 | I58: 85548970.47 | J58: 85.54897047 | K58: 0.08554897047
A59: 1033-Cpx | B59: 0.70299 | C59: 0.70299 | D59: 0.0019 | E59: 1 | F59: 48800000000 | G59: 1.420081967e-11 | H59: 1.621737374e+11 | I59: 0
A60: 1033-Gt | B60: 0.7041 | C60: 0.70507 | D60: 0.794 | E60: 1.001221662 | F60: 48800000000 | G60: 1.420081967e-11 | H60: 1.621737374e+11 | I60: 85990588.82 | J60: 85.99058882 | K60: 0.08599058882
A61: 4254-WR | B61: 0.70383 | C61: 0.704434 | D61: 0.255 | E61: 1.002368627 | F61: 48800000000 | G61: 1.420081967e-11 | H61: 1.621737374e+11 | I61: 166627915.3 | J61: 166.6279153 | K61: 0.1666279153
A62: 4254-Gt | B62: 0.71016 | C62: 0.710261 | D62: 0.0849 | E62: 1.001189635 | F62: 48800000000 | G62: 1.420081967e-11 | H62: 1.621737374e+11 | I62: 83737563.9 | J62: 83.7375639 | K62: 0.0837375639
A63: 4258-WR | B63: 0.71443 | C63: 0.714851 | D63: 0.331 | E63: 1.001271903 | F63: 48800000000 | G63: 1.420081967e-11 | H63: 1.621737374e+11 | I63: 89524704.19 | J63: 89.52470419 | K63: 0.08952470419
A64: 5267-WR | B64: 0.7015 | C64: 0.715348 | D64: 0.885 | E64: 1.015647458 | F64: 48800000000 | G64: 1.420081967e-11 | H64: 1.621737374e+11 | I64: 1093535196 | J64: 1093.535196 | K64: 1.093535196
A65: 5267-Cpx | B65: 0.70277 | C65: 0.703518 | D65: 0.0478 | E65: 1.015648536 | F65: 48800000000 | G65: 1.420081967e-11 | H65: 1.621737374e+11 | I65: 1093609947 | J65: 1093.609947 | K65: 1.093609947
A66: 5267-Gt | B66: 0.71031 | C66: 0.72495 | D66: 0.93 | E66: 1.015741935 | F66: 48800000000 | G66: 1.420081967e-11 | H66: 1.621737374e+11 | I66: 1100086560 | J66: 1100.08656 | K66: 1.10008656
A67: 5268-WR | B67: 0 | C67: 0 | D67: 0.5035 | E67: 1 | F67: 48800000000 | G67: 1.420081967e-11 | H67: 1.621737374e+11 | I67: 0
A68: 5268-Gt | B68: 0.70763 | C68: 0.7254 | D68: 1.135 | E68: 1.015656388 | F68: 48800000000 | G68: 1.420081967e-11 | H68: 1.621737374e+11 | I68: 1094154457 | J68: 1094.154457 | K68: 1.094154457
A69: Letseng-la-Terae | B69: 0.70368 | C69: 0.70388 | D69: 0.153 | E69: 1.00130719 | F69: 48800000000 | G69: 1.420081967e-11 | H69: 1.621737374e+11 | I69: 92006752.8 | J69: 92.0067528 | K69: 0.0920067528
A70: Bellsbank | B70: 0.70789 | C70: 0.70837 | D70: 0.285 | E70: 1.001684211 | F70: 48800000000 | G70: 1.420081967e-11 | H70: 1.621737374e+11 | I70: 118521120.5 | J70: 118.5211205 | K70: 0.1185211205
J71: Maximum | K71: =MAX(K52:K70) -> 1.10008656
J72: Minimum | K72: =MIN(K52:K71) -> 0.08346176056
J73: Difference | K73: 1.02
A74: Table 3
A75: Sample | B75: Today | C75: The | D75: Step | E75: Age | F75: Age | G75: Age
A76: Number | B76: 187Os/186Os | C76: Ratio | D76: Two | E76: Years | F76: Million Years | G76: Billion Years
A77: 1007-FWR | B77: 0.918 | C77: =(1.04-B77) -> 0.122 | D77: =(C77/0.050768) -> 2.40308856 | E77: =(D77 * 1000000000) -> 2403088560 | F77: =(E77/1000000) -> 2403.08856 | G77: =(F77/1000) -> 2.40308856
A78: 1008-WR | B78: 0.352 | C78: =(1.04-B78) -> 0.688 | D78: =(C78/0.050768) -> 13.55184368 | E78: =(D78 * 1000000000) -> 1.355184368e+10 | F78: =(E78/1000000) -> 13551.84368 | G78: =(F78/1000) -> 13.55184368
A79: 1012-WR | B79: 1.038 | C79: 0.002 | D79: 0.03939489442 | E79: =(D79 * 1000000000) -> 39394894.42 | F79: 39.39489442 | G79: 0.03939489442
A80: 1033-WR | B80: 0.966 | C80: 0.074 | D80: 1.457611094 | E80: 1457611094 | F80: 1457.611094 | G80: 1.457611094
A81: 4254-WR | B81: 0.976 | C81: 0.064 | D81: 1.260636621 | E81: 1260636621 | F81: 1260.636621 | G81: 1.260636621
A82: 4258-WR | B82: 1.07 | C82: -0.03 | D82: -0.5909234163 | E82: -590923416.3 | F82: -590.9234163 | G82: -0.5909234163
A83: 1566-WR | B83: 1.051 | C83: -0.011 | D83: -0.2166719193 | E83: -216671919.3 | F83: -216.6719193 | G83: -0.2166719193
A84: 1596-WR | B84: 0.905 | C84: 0.135 | D84: 2.659155373 | E84: 2659155373 | F84: 2659.155373 | G84: 2.659155373
A85: 1924-WR | B85: 1.002 | C85: 0.038 | D85: 0.748502994 | E85: 748502994 | F85: 748.502994 | G85: 0.748502994
A86: 1925-WR | B86: 0.978 | C86: 0.062 | D86: 1.221241727 | E86: 1221241727 | F86: 1221.241727 | G86: 1.221241727
A87: 5267-WR | B87: 1.003 | C87: 0.037 | D87: 0.7288055468 | E87: 728805546.8 | F87: 728.8055468 | G87: 0.7288055468
A88: 5268-WR | B88: 0.956 | C88: 0.084 | D88: 1.654585566 | E88: 1654585566 | F88: 1654.585566 | G88: 1.654585566
A89: Letseng-La-Terae | B89: 1.208 | C89: -0.168 | D89: -3.309171131 | E89: -3309171131 | F89: -3309.171131 | G89: -3.309171131
A90: Bellsbank | B90: 0.93 | C90: 0.11 | D90: 2.166719193 | E90: 2166719193 | F90: 2166.719193 | G90: 2.166719193
F91: Maximum | G91: =MAX(G77:G90) -> 13.55184368
F92: Minimum | G92: =MIN(G77:G91) -> -3.309171131
F93: Difference | G93: 16.86
D97: Dating | E97: Age | F97: Age | G97: Age | H97: Age
D98: Summary | E98: 87Rb/86Sr | F98: 187Os/186Os | G98: Nd, Age | H98: 207Pb/206Pb
D99: Maximum | E99: 1100 | F99: 13551 | G99: 1630 | H99: 5064
D100: Minimum | E100: 83 | F100: -3309 | G100: 520 | H100: 4700
D101: Difference | E101: =(E99-E100) -> 1017 | F101: 16860 | G101: =(G99-G100) -> 1110 | H101: =(H99-H100) -> 364

Sheet To_Old_05
L1: Average | M1: Maximum | N1: Minimum | O1: Difference
A2: Age | B2: 3.25 | C2: 1.56 | D2: -3.47 | E2: 2.61 | F2: 2.6 | G2: -1.34 | H2: 3.14 | I2: -0.6 | J2: -0.86 | K2: 2.81 | L2: =AVERAGE(B2:K2)*1000 -> 970 | M2: =MAX(B2:K2)*1000 -> 3250 | N2: =MIN(B2:K2)*1000 -> -3470 | O2: 6720
A3: Age | B3: 3.93 | C3: 2.11 | D3: 14.58 | E3: 5.2 | F3: 4.87 | G3: 0.11 | H3: 0.06 | I3: 0.29 | J3: -15.02 | K3: 3.05 | L3: =AVERAGE(B3:K3)*1000 -> 1918 | M3: =MAX(B3:K3)*1000 -> 14580 | N3: =MIN(B3:K3)*1000 -> -15020 | O3: 29600
L5: Average | M5: Maximum | N5: Minimum | O5: Difference
A6: Age | B6: 2.69 | C6: 2.74 | D6: 2.69 | E6: 2.64 | F6: 3.19 | G6: 1.54 | H6: 2.73 | I6: 0.9 | J6: 2.24 | K6: 2.39 | L6: =AVERAGE(B6:K6)*1000 -> 2375 | M6: =MAX(B6:K6)*1000 -> 3190 | N6: =MIN(B6:K6)*1000 -> 900 | O6: 3100
A7: Age | B7: -11.15 | C7: 5.93 | D7: 2.81 | E7: 3.58 | F7: -1.24 | G7: -1.54 | H7: 6.6 | I7: 1.45 | J7: 21.67 | K7: 2.85 | L7: =AVERAGE(B7:K7)*1000 -> 3096 | M7: =MAX(B7:K7)*1000 -> 21670 | N7: =MIN(B7:K7)*1000 -> -11150 | O7: 32820
M10: Average | N10: Maximum | O10: Minimum | P10: Difference
A11: Age | B11: 3.02 | C11: 2.81 | D11: 3.05 | E11: 2.74 | F11: 3.05 | G11: 2.59 | H11: 2.74 | I11: 0.59 | J11: -115.96 | K11: -117.98 | L11: 2.7 | M11: =AVERAGE(B11:L11)*1000 -> -19150 | N11: =MAX(B11:L11)*1000 -> 3050 | O11: =MIN(B11:L11)*1000 -> -117980 | P11: 121030
A12: Age | B12: 3.34 | C12: 2.96 | D12: 4.35 | E12: 5.02 | F12: 6.18 | G12: 143.83 | H12: 3.27 | I12: 2.64 | J12: 7.05 | K12: 90.44 | L12: 0.45 | M12: =AVERAGE(B12:L12)*1000 -> 24502.72727 | N12: =MAX(B12:L12)*1000 -> 143830 | O12: =MIN(B12:L12)*1000 -> 450 | P12: 143380
A15: Mineral | B15: Average | C15: Maximum | D15: Minimum | E15: Difference
A16: Dunite | B16: 970 | C16: 3250 | D16: -3470 | E16: 6720
A17: Dunite | B17: 1918 | C17: 14580 | D17: -15020 | E17: 29600
A18: Wehrlite | B18: 2375 | C18: 3190 | D18: 900 | E18: 3100
A19: Wehrlite | B19: 3096 | C19: 21670 | D19: -11150 | E19: 32820
A20: Websterite | B20: -19150 | C20: 3050 | D20: -117980 | E20: 121030
A21: Websterite | B21: 24502.72727 | C21: 143830 | D21: 450 | E21: 143380 | K21: 8 | L21: 4

Sheet To_Old_06
A1: Age, Million Years | B1: Rb/Sr
A2: Negative
A3: Negative
A4: Negative
A5: 5000
A6: 20000
A7: 16000
A8: 17200
A9: 15800
A10: 7720
A11: 4860 | B11: 4 | C11: 8 | D11: 4 | E11: 4
A12: 7300

Sheet To_Old_07
A1: 206Pb/238U | B1: 206Pb/238U | C1: 207Pb/206Pb | D1: 207Pb/206Pb
A2: Ratio | B2: Age | C2: Ratio | D2: Age
A3: 220.5 | B3: =[2]!AgePb6U8(A3) ->  | C3: 297 | D3: =[2]!AgePb76(C3) -> 
A4: 219.2 | B4: =[2]!AgePb6U8(A4) ->  | C4: 63 | D4: =[2]!AgePb76(C4) -> 
A5: 216.6 | B5: =[2]!AgePb6U8(A5) ->  | C5: 252 | D5: =[2]!AgePb76(C5) -> 
A6: 209.4 | B6: =[2]!AgePb6U8(A6) ->  | C6: 47 | D6: =[2]!AgePb76(C6) -> 
A7: 213.7 | B7: =[2]!AgePb6U8(A7) ->  | C7: 13 | D7: =[2]!AgePb76(C7) -> 
A8: 418.8 | B8: =[2]!AgePb6U8(A8) ->  | C8: 318 | D8: =[2]!AgePb76(C8) -> 
A14: 208Pb/232Th | B14: 208Pb/232Th | C14: 207Pb/235U | D14: 207Pb/235U | E14: 206Pb/238U | F14: 206Pb/238U
A15: Ratio | B15: Age | C15: Ratio | D15: Age | E15: Ratio | F15: Age
A16: 228 | B16: =[2]!AgePb8Th2(A3) ->  | C16: 0.2508 | D16: =[2]!AgePb7U5(C16) ->  | E16: 0.0348 | F16: =[2]!AgePb6U8(E16) -> 
A17: 199 | B17: =[2]!AgePb8Th2(A4) ->  | C17: 0.225 | D17: =[2]!AgePb7U5(C17) ->  | E17: 0.03459 | F17: =[2]!AgePb6U8(E17) -> 
A18: 212 | B18: =[2]!AgePb8Th2(A5) ->  | C18: 0.2415 | D18: =[2]!AgePb7U5(C18) ->  | E18: 0.03418 | F18: =[2]!AgePb6U8(E18) -> 
A19: 193 | B19: =[2]!AgePb8Th2(A6) ->  | C19: 0.214 | D19: =[2]!AgePb7U5(C19) ->  | E19: 0.03302 | F19: =[2]!AgePb6U8(E19) -> 
A20: 196 | B20: =[2]!AgePb8Th2(A7) ->  | C20: 0.215 | D20: =[2]!AgePb7U5(C20) ->  | E20: 0.03371 | F20: =[2]!AgePb6U8(E20) -> 
A21: 406 | B21: =[2]!AgePb8Th2(A8) ->  | C21: 0.488 | D21: =[2]!AgePb7U5(C21) ->  | E21: 0.0671 | F21: =[2]!AgePb6U8(E21) -> 

Sheet To_Old_08
H1: Age
A2: Sample | B2: Th232/Pb204 | C2: Pb204/U238 | D2: Pb208/Pb204 | E2: U238/Pb204 | F2: Th232/U238 | G2: Pb208/Th232 | H2: Pb208/Th232
A3: 1 | B3: =(F3/C3) -> 1627.5 | C3: =(1/E3) -> 0.001290322581 | D3: 65.189 | E3: 775 | F3: 2.1 | G3: =(D3/B3) -> 0.0400546851 | H3: =[2]!AgePb8Th2(G3) ->  | I3: 327 | J3: 314 | K3: 222
A4: 2 | B4: =(F4/C4) -> 446 | C4: =(1/E4) -> 0.004484304933 | D4: 45.374 | E4: 223 | F4: 2 | G4: =(D4/B4) -> 0.101735426 | H4: =[2]!AgePb8Th2(G4) ->  | I4: 324 | J4: 323 | K4: 316
A5: 3 | B5: 1097.8 | C5: 0.001002004008 | D5: 55.349 | E5: 998 | F5: 1.1 | G5: 0.05041810895 | H5: =[2]!AgePb8Th2(G5) ->  | I5: 323 | J5: 318 | K5: 286
A6: 4 | B6: 523.9 | C6: 0.002481389578 | D6: 56.976 | E6: 403 | F6: 1.3 | G6: 0.1087535789 | H6: =[2]!AgePb8Th2(G6) ->  | I6: 679 | J6: 604 | K6: 331
A7: 5 | B7: 382.2 | C7: 0.003663003663 | D7: 50.248 | E7: 273 | F7: 1.4 | G7: 0.1314704343 | H7: =[2]!AgePb8Th2(G7) ->  | I7: 620 | J7: 556 | K7: 302
A8: 6 | B8: 106.5 | C8: 0.002816901408 | D8: 41.114 | E8: 355 | F8: 0.3 | G8: 0.3860469484 | H8: =[2]!AgePb8Th2(G8) ->  | I8: 594 | J8: 537 | K8: 302
A9: 7 | B9: 913.9 | C9: 0.002079002079 | D9: 59.629 | E9: 481 | F9: 1.9 | G9: 0.06524674472 | H9: =[2]!AgePb8Th2(G9) ->  | I9: 458 | J9: 429 | K9: 274
A10: 8 | B10: 100.8 | C10: 0.006944444444 | D10: 43.933 | E10: 144 | F10: 0.7 | G10: 0.435843254 | H10: =[2]!AgePb8Th2(G10) ->  | I10: 1100 | J10: 875 | K10: 339
A11: 10 | B11: 1689.6 | C11: 0.001302083333 | D11: 39.429 | E11: 768 | F11: 2.2 | G11: 0.02333629261 | H11: =[2]!AgePb8Th2(G11) ->  | I11: 320 | J11: 317 | K11: 298
A12: 11 | B12: 6170 | C12: 1.620745543e-05 | D12: 84.897 | E12: 61700 | F12: 0.1 | G12: 0.01375964344 | H12: =[2]!AgePb8Th2(G12) ->  | I12: 319 | J12: 319 | K12: 320
A13: 12 | B13: 3220 | C13: 6.211180124e-05 | D13: 49.773 | E13: 16100 | F13: 0.2 | G13: 0.01545745342 | H13: =[2]!AgePb8Th2(G13) ->  | I13: 340 | J13: 338 | K13: 327
A14: 13 | B14: 2185.2 | C14: 0.0005491488193 | D14: 40.347 | E14: 1821 | F14: 1.2 | G14: 0.01846375618 | H14: =[2]!AgePb8Th2(G14) ->  | I14: 323 | J14: 322 | K14: 320
A15: 17 | B15: 2154 | C15: 0.0005571030641 | D15: 39.451 | E15: 1795 | F15: 1.2 | G15: 0.01831522748 | H15: =[2]!AgePb8Th2(G15) ->  | I15: 298 | J15: 302 | K15: 330
A16: 20 | B16: 2597 | C16: 0.000269541779 | D16: 42.469 | E16: 3710 | F16: 0.7 | G16: 0.01635309973 | H16: =[2]!AgePb8Th2(G16) ->  | I16: 306 | J16: 309 | K16: 328
E19: Age
A20: Sample | B20: Pb206/Pb204 | C20: U238/Pb204 | D20: Pb206/U238 | E20: Pb206/U238
A21: 1 | B21: 22.216 | C21: 82.7 | D21: =(B21/C21) -> 0.2686336155 | E21: =[2]!AgePb6U8(D21) -> 
A22: 2 | B22: 21.155 | C22: 61.7 | D22: =(B22/C22) -> 0.3428687196 | E22: =[2]!AgePb6U8(D22) -> 
A23: 3 | B23: 22.53 | C23: 88.8 | D23: 0.2537162162 | E23: =[2]!AgePb6U8(D23) -> 
A24: 4 | B24: 19.005 | C24: 19 | D24: 1.000263158 | E24: =[2]!AgePb6U8(D24) -> 
A25: 5 | B25: 18.967 | C25: 18.3 | D25: 1.036448087 | E25: =[2]!AgePb6U8(D25) -> 
A26: 6 | B26: 18.768 | C26: 14.3 | D26: 1.312447552 | E26: =[2]!AgePb6U8(D26) -> 
A27: 7 | B27: 24.728 | C27: 142.7 | D27: 0.1732866153 | E27: =[2]!AgePb6U8(D27) ->  | H27: Million Years | I27: Million Years
A28: 8 | B28: 23.587 | C28: 139.8 | D28: 0.1687195994 | E28: =[2]!AgePb6U8(D28) ->  | H28: 7323 | I28: -340
A29: 9 | B29: 23.524 | C29: 136.2 | D29: 0.1727165932 | E29: =[2]!AgePb6U8(D29) ->  | H29: 4830 | I29: -500
A30: 10 | B30: 21.782 | C30: 88.2 | D30: 0.2469614512 | E30: =[2]!AgePb6U8(D30) ->  | H30: 5060 | I30: -550
A31: 11 | B31: 18.266 | C31: 2.71 | D31: 6.740221402 | E31: =[2]!AgePb6U8(D31) ->  | H31: -240 | I31: -610
A32: 12 | B32: 19.11 | C32: 13.75 | D32: 1.389818182 | E32: =[2]!AgePb6U8(D32) ->  | H32: -290 | I32: -650
A33: 13 | B33: 31.644 | C33: 302 | D33: 0.104781457 | E33: =[2]!AgePb6U8(D33) -> 
A34: 14 | B34: 42.304 | C34: 470 | D34: 0.09000851064 | E34: =[2]!AgePb6U8(D34) -> 
A35: 15 | B35: 18.741 | C35: 7.85 | D35: 2.387388535 | E35: =[2]!AgePb6U8(D35) -> 
A36: 16 | B36: 18.171 | C36: 1.19 | D36: 15.2697479 | E36: =[2]!AgePb6U8(D36) -> 
A37: 17 | B37: 18.329 | C37: 4.04 | D37: 4.536881188 | E37: =[2]!AgePb6U8(D37) -> 

Sheet Sample
A1: 206Pb/238U | B1: 206Pb/238U | D1: 207Pb/206Pb | E1: 207Pb/206Pb | G1: 208Pb/232Th | H1: 208Pb/232Th | J1: 207Pb/235U | K1: 207Pb/235U
A2: Ratio | B2: Age | D2: Ratio | E2: Age | G2: Ratio | H2: Age | J2: Ratio | K2: Age
A3: 1 | B3: =[2]!AgePb6U8(A3) ->  | D3: 0.1 | E3: =[2]!AgePb76(D3) ->  | G3: 0.3 | H3: =[2]!AgePb8Th2(G3) ->  | J3: 1 | K3: =[2]!AgePb7U5(J3) -> 
A4: 2 | B4: =[2]!AgePb6U8(A4) ->  | D4: 0.5 | E4: =[2]!AgePb76(D4) ->  | G4: 1 | H4: =[2]!AgePb8Th2(G4) ->  | J4: 100 | K4: =[2]!AgePb7U5(J4) -> 
A5: 3 | B5: =[2]!AgePb6U8(A5) ->  | D5: 0.8 | E5: =[2]!AgePb76(D5) ->  | G5: 2 | H5: =[2]!AgePb8Th2(G5) ->  | J5: 200 | K5: =[2]!AgePb7U5(J5) -> 
A6: 4 | B6: =[2]!AgePb6U8(A6) ->  | D6: 1 | E6: =[2]!AgePb76(D6) ->  | G6: 3 | H6: =[2]!AgePb8Th2(G6) ->  | J6: 300 | K6: =[2]!AgePb7U5(J6) -> 
A7: 5 | B7: =[2]!AgePb6U8(A7) ->  | D7: 2 | E7: =[2]!AgePb76(D7) ->  | G7: 4 | H7: =[2]!AgePb8Th2(G7) ->  | J7: 500 | K7: =[2]!AgePb7U5(J7) -> 
A8: 6 | B8: =[2]!AgePb6U8(A8) ->  | D8: 3 | E8: =[2]!AgePb76(D8) ->  | G8: 5 | H8: =[2]!AgePb8Th2(G8) ->  | J8: 1000 | K8: =[2]!AgePb7U5(J8) -> 
A9: 7 | B9: =[2]!AgePb6U8(A9) ->  | D9: 4 | E9: =[2]!AgePb76(D9) ->  | G9: 6 | H9: =[2]!AgePb8Th2(G9) ->  | J9: 5000 | K9: =[2]!AgePb7U5(J9) -> 
A10: 8 | B10: =[2]!AgePb6U8(A10) ->  | D10: 5 | E10: =[2]!AgePb76(D10) ->  | G10: 7 | H10: =[2]!AgePb8Th2(G10) ->  | J10: 10000 | K10: =[2]!AgePb7U5(J10) -> 
A11: 9 | B11: =[2]!AgePb6U8(A11) ->  | D11: 6 | E11: =[2]!AgePb76(D11) ->  | G11: 8 | H11: =[2]!AgePb8Th2(G11) ->  | J11: 20000 | K11: =[2]!AgePb7U5(J11) -> 
A12: 10 | B12: =[2]!AgePb6U8(A12) ->  | D12: 7 | E12: =[2]!AgePb76(D12) ->  | G12: 9 | H12: =[2]!AgePb8Th2(G12) ->  | J12: 50000 | K12: =[2]!AgePb7U5(J12) -> 
A13: 20 | B13: =[2]!AgePb6U8(A13) ->  | D13: 8 | E13: =[2]!AgePb76(D13) ->  | G13: 10 | H13: =[2]!AgePb8Th2(G13) ->  | J13: 100000 | K13: =[2]!AgePb7U5(J13) -> 
A14: 30 | B14: =[2]!AgePb6U8(A14) ->  | D14: 9 | E14: =[2]!AgePb76(D14) ->  | G14: 20 | H14: =[2]!AgePb8Th2(G14) ->  | J14: 500000 | K14: =[2]!AgePb7U5(J14) -> 
A15: 40 | B15: =[2]!AgePb6U8(A15) ->  | D15: 10 | E15: =[2]!AgePb76(D15) ->  | G15: 30 | H15: =[2]!AgePb8Th2(G15) ->  | J15: 1000000 | K15: =[2]!AgePb7U5(J15) -> 
A16: 50 | B16: =[2]!AgePb6U8(A16) ->  | G16: 40 | H16: =[2]!AgePb8Th2(G16) ->  | J16: 5000000 | K16: =[2]!AgePb7U5(J16) -> 
A17: 60 | B17: =[2]!AgePb6U8(A17) -> 
A18: 70 | B18: =[2]!AgePb6U8(A18) -> 
A19: 80 | B19: =[2]!AgePb6U8(A19) -> 
A20: 90 | B20: =[2]!AgePb6U8(A20) -> 
A21: 100 | B21: =[2]!AgePb6U8(A21) -> 
A22: 200 | B22: =[2]!AgePb6U8(A22) -> 
A23: 300 | B23: =[2]!AgePb6U8(A23) ->  | E23: 4567.18 | F23: 4567.38 | G23: =(E23/F23) -> 0.9999562112
A24: 400 | B24: =[2]!AgePb6U8(A24) -> 
A25: 500 | B25: =[2]!AgePb6U8(A25) -> 
A26: 600 | B26: =[2]!AgePb6U8(A26) -> 
A27: 700 | B27: =[2]!AgePb6U8(A27) -> 
A28: 800 | B28: =[2]!AgePb6U8(A28) -> 
A29: 900 | B29: =[2]!AgePb6U8(A29) -> 
A30: 1000 | B30: =[2]!AgePb6U8(A30) -> 
A31: 2000 | B31: =[2]!AgePb6U8(A31) -> 
A32: 3000 | B32: =[2]!AgePb6U8(A32) -> 
A33: 4000 | B33: =[2]!AgePb6U8(A33) -> 
A34: 5000 | B34: =[2]!AgePb6U8(A34) -> 
A35: 6000 | B35: =[2]!AgePb6U8(A35) -> 
A36: 7000 | B36: =[2]!AgePb6U8(A36) -> 
A37: 8000 | B37: =[2]!AgePb6U8(A37) -> 
A38: 9000 | B38: =[2]!AgePb6U8(A38) -> 
A39: 10000 | B39: =[2]!AgePb6U8(A39) -> 
